Workbook

Sheet 0_Erlaeuterungen
C1: Das Makro dieses Programmes kann nicht gestartet werden, da Ihre Makrosicherheit dies nicht zulässt.
C2: Bitte wählen Sie die Excel-Optionen aus und stellen Sie im Sicherheitscenter (od. Vertrauensstellungscenter) die Einstellungen der Makros auf 'alle Makros mit Benachrichtigung deaktivieren'. (Falls Sie damit Probleme haben, kontaktieren Sie Ihren EDV-Verantwortlichen) | D2: Herzlich Willkommen zur App der Kostenkontrolle des Kantons St.Gallen
C3: Anschliessend starten Sie die Datei neu und bei Nachfrage bestätigen Sie, dass Sie das Makro starten möchten. | D3: Um das Programm starten zu können drücken Sie bitte folgenden Button: (je nach Vorkommen)
D5: entweder: | M5: und anschliessend:
D12: oder:

Sheet 1_Eingabe_Grunddaten (hidden)
D1: Eingabe vorhanden?
A2: Eingabeformular | D2: nein
A4: Rubrik | D4: Bemerkung
A5: Formulargrundlagen
A7: Auswählen: Budgetverwantworliche Stelle
A9: Objektdaten
A10: Projektnummer
A11: Gemeinde / Objekt / Baulos
A12: Art der Arbeit oder Lieferung
A13: Schweiz. Hauptstrasse(n) Nr.
A14: Kantonsstrasse(n) Nr.
A15: Gemeinde(n) Nr.
A16: Bauabschnitt Nr.
A17: RMS-Stationierung km von | B17: von
B18: bis
A21: Vertragsgrundlagen
A22: Angebot vom | D22: Datum
A23: Werk-/Ingenieurvertrag vom | D23: Datum
A25: RRB/AS-Nr. (Regierungsratsbeschluss / Auftragsschreiben) | D25: Nummer
A26: RRB/AS vom | D26: Datum
A27: RRB/AS Betrag | D27: Fr.
A28: Kreditreserve | D28: Nummer
A30: Konditionen
A31: Konditionen (Zahlungsfrist in Tagen) | D31: Tage
A32: Rabatt | D32: Prozent
A33: Garantierückbehalt | D33: Prozent
A34: Skonto | D34: Prozent
A35: Zahlungsfrist Skonto | D35: Tage
A36: MwSt | C36: 7.7 | D36: Prozent | E36: 2.5 | F36: 0
A37: MwSt var. Gem. Beilage | D37: Fr.
A39: Angaben zum Unternehmer
A40: Firma
A41: Firmenname Adressfirma
A42: Strasse
A43: PLZ Ort
A44: MwSt. Nr.
A46: Angaben zur örtlichen Bauleitung
A47: Örtliche Bauleitung /INGE
A48: Örtliche Bauleitung Adressfirma
A49: Strasse
A50: PLZ Ort
A52: Oberbauleitung
A53: Abteilung oder Sektion oder Fachstelle
A54: Sachbearbeiter
A56: Bankverbindung
A57: Zahlbar an:
A58: Adresse
A59: Postkonto / ESR-Nr.
A60: IBAN

Sheet 2_Eingabe_Vertragsgrundlagen (hidden)
B2: Vertragsgrundlagen | G2: 7 | H2: 8 | I2: 9 | K2: 11 | M2: 13 | Q2: 17 | R2: 18 | S2: 19 | V2: 22
E3: 1 | G3: 5 | H3: 6 | I3: 7 | K3: 9 | M3: 11 | O3: 13 | P3: 14 | T3: 18 | U3: 19
H4: Vergabe | K4: Alle Nachtrags- offerten | M4: Vertrag (Vergabe + Nachtragsofferte(n))
A5: Auswahl | B5: BKA | C5: Leistung | F5: MwSt-Satz | G5: Eingabe Vergabe Brutto | H5: Brutto | I5: Netto | K5: Netto | M5: Netto | O5: Index | P5: Zeile Nr. | Q5: Rang Vergabe | R5: Netto Vor Korrektur | S5: Vergleich Vergabe | T5: Auftragszugehörigkeit | U5: mit Abzügen | V5: Brutto Neu für Rangberechnung | W5: MwSt. Betrag ohne NK, ZT, Teu | X5: MwSt. Betrag nur Nebenkosten | Y5: MwSt. Betrag nur Zeittarif | Z5: MwSt. Betrag nur Teuerung | AA5: Mwst. Betrag nur Nebenkosten mit Abzug | AB5: Mwst. Betrag nur Zeittarif mit Abzug | AD5: Netto ohne MwSt.
I6: =IF(P6="",0,IF(P6=S6,R6+c_RundungskorrekturVergabe,R6)) -> 0 | K6: ='3_Eingabe_Nachtragsofferten'!U12 -> 0 | M6: =I6+K6 -> 0 | P6: 1 | Q6: =IF(H6="","",RANK(V6,r_VertragRangBruttoNeu,0)) ->  | R6: =IF(G6=0,0,IF(U6="Ja",IF(T6=5,ROUND((AD6+AB6)/5,2)*5,IF(T6=6,ROUND((AD6+AA6)/5,2)*5,ROUND((AD6+W6)/5,2)*5)),IF(T6=5,ROUND((AD6+Y6)/5,2)*5,IF(T6=6,ROUND((AD6+X6)/5,2)*5,ROUND((AD6+Z6)/5,2)*5)))) -> 0 | S6: =IF(r_RangVergabe="","",MATCH(1,r_RangVergabe,0)) ->  | V6: =IF(G6<0,G6-2*G6,G6) -> 0 | W6: =IF(AND($U6="Ja",OR($T6=1,$T6=2,$T6=4)),IF($F6<>"",$AD6*(IF($F6=1,c_VertragMwst1,IF($F6=2,c_VertragMwst2,c_VertragMwst3)))/100,0),0) -> 0 | X6: =IF(AND($T6=6,$U6="Nein"),$AD6*(IF($F6=1,c_VertragMwst1,IF($F6=2,c_VertragMwst2,c_VertragMwst3)))/100,0) -> 0 | Y6: =IF(AND($T6=5,$U6="Nein"),$AD6*(IF($F6=1,c_VertragMwst1,IF($F6=2,c_VertragMwst2,c_VertragMwst3)))/100,0) -> 0 | Z6: =IF(AND(OR($T6=3,$T6=7),$U6="Nein"),$AD6*(IF($F6=1,c_VertragMwst1,IF($F6=2,c_VertragMwst2,c_VertragMwst3)))/100,0) -> 0 | AA6: =IF(AND($T6=6,$U6="Ja"),$AD6*(IF($F6=1,c_VertragMwst1,IF($F6=2,c_VerMwst2,c_VertragMwst3)))/100,0) -> 0 | AB6: =IF(AND($T6=5,$U6="Ja"),$AD6*(IF($F6=1,c_VertragMwst1,IF($F6=2,c_VertragMwst2,c_VertragMwst3)))/100,0) -> 0 | AD6: =IF($G6=0,0,IF($U6="Ja",$G6*$R$13,$G6)) -> 0
I7: 0 | K7: ='3_Eingabe_Nachtragsofferten'!U13 -> 0 | M7: 0 | R7: 0 | V7: 0 | W7: 0 | X7: 0 | Y7: 0 | Z7: 0 | AA7: =IF(AND($T7=6,$U7="Ja"),$AD7*(IF($F7=1,c_VertragMwst1,IF($F7=2,c_VerMwst2,c_VertragMwst3)))/100,0) -> 0 | AB7: 0 | AD7: =IF($G7=0,0,IF($U7="Ja",$G7*$R$13,$G7)) -> 0
V9: =SUM(r_VertragRangBruttoNeu) -> 0 | W9: =SUM(r_VBetragMwstOhne) -> 0 | X9: =SUM(r_VBetragMwst6) -> 0 | Y9: =SUM(r_VBetragMwst5) -> 0 | Z9: =SUM(r_VBetragMwst3) -> 0 | AA9: =SUM(r_VBetragMwst6mit) -> 0 | AB9: =SUM(r_VBetragMwst5mit) -> 0 | AD9: =SUM(r_VNettoohneMwst) -> 0
A10: Zwischentotal 1 | G10: =SUM(r_GrundvertragBruttoEingabe) -> 0 | H10: =SUM(r_GrundvertragBrutto) -> 0 | I10: =SUM(r_GrundvertragNettoMitKorrektur) -> 0 | K10: =SUM(r_ZusammenzugAllerNachtragsoffertenNetto) -> 0 | M10: =SUM(r_VertragNetto) -> 0 | P10: =c_SummeGrundvertragBrutto -> 0 | R10: =SUM(r_GrundvertragNettoVorKorrektur) -> 0
A11: Rabatt | C11: - | D11: ='1_Eingabe_Grunddaten'!C32 -> 0 | E11: % | H11: =-ROUND((c_SummeGrundvertragBrutto*'1_Eingabe_Grunddaten'!C32/100)/5,2)*5 -> 0 | P11: =(c_SummeGrundvertragBrutto*'1_Eingabe_Grunddaten'!C32/100)*-1 -> 0 | W11: 1 | X11: 2 | Y11: 3 | Z11: 4 | AA11: 5 | AB11: 6
A12: Zwischentotal 2 | H12: =SUM(H10:H11) -> 0 | I12: ohne Nebenkosten | K12: nur | M12: nur | O12: nur | P12: =P10+P11 -> 0 | R12: Faktor Netto/Brutto | W12: =IF(W9=0,"",RANK(W9,r_VertragRangTotal,0)) ->  | AD12: =MATCH(1,r_RangVertragTotal,0) -> 
A13: Nebenkosten | E13: =COUNTIF(r_VertragMwst,1) -> 0 | F13: ='1_Eingabe_Grunddaten'!C36 -> 7.7 | G13: Mwst 1 | H13: 0 | I13: Zeittarif, Teuerung | K13: Nebenkosten | M13: Zeittarif | O13: Teuerung | P13: nur Nebenkosten | Q13: nur Zeittarif | R13: =P12/P10 -> 
A14: Zeittarif | E14: =COUNTIF(r_VertragMwst,2) -> 0 | F14: ='1_Eingabe_Grunddaten'!E36 -> 2.5 | G14: Mwst 2 | H14: 0 | P14: mit Abzug | Q14: mit Abzug
A15: Teuerung | E15: =COUNTIF(r_VertragMwst,3) -> 0 | F15: ='1_Eingabe_Grunddaten'!F36 -> 0 | G15: Mwst 3 | H15: 0 | I15: 0 | P15: 0 | Q15: 0
A16: Zwischentotal 3 | F16: =SUM(E13:E15) -> 0 | H16: =SUM(H12:H15) -> 0 | I16: =IF(I15=0,0,I15*c_SummeGrundvertragMinusRabatt/c_SummeGrundvertragBrutto) -> 0 | K16: =H13 -> 0 | M16: =H14 -> 0 | O16: =H15 -> 0 | P16: =IF(P15=0,0,P15*c_SummeGrundvertragMinusRabatt/c_SummeGrundvertragBrutto) -> 0 | Q16: =IF(Q15=0,0,Q15*c_SummeGrundvertragMinusRabatt/c_SummeGrundvertragBrutto) -> 0
A17: MwSt | C17: + | D17: =IF(AND(c_VertragMwst1Summe>0,c_VertragMwst2Summe>0,c_VertragMwst3Summe>0),TEXT(c_VertragMwst1,"0.0")&" / "&TEXT(c_VertragMwst2,"0.0")&" / "&TEXT(c_VertragMwst3,"0.0"),IF(AND(c_VertragMwst1Summe>0,c_VertragMwst2Summe>0),TEXT(c_VertragMwst1,"0.0")&" / "&TEXT(c_VertragMwst2,"0.0"),IF(AND(c_VertragMwst2Summe>0,c_VertragMwst3Summe>0),TEXT(c_VertragMwst2,"0.0")&" / "&TEXT(c_VertragMwst3,"0.0"),IF(AND(c_VertragMwst1Summe>0,c_VertragMwst3Summe>0),TEXT(c_VertragMwst1,"0.0")&" / "&TEXT(c_VertragMwst3,"0.0"),IF(c_VertragMwst1Summe>0,TEXT(c_VertragMwst1,"0.0"),IF(c_VertragMwst2Summe>0,TEXT(c_VertragMwst2,"0.0"),IF(c_VertragMwst3Summe>0,TEXT(c_VertragMwst3,"0.0"),"0.0"))))))) -> 0.0 | E17: % | H17: =ROUND(($I17+$K17+$M17+$O17+$P17+$Q17)/5,2)*5 -> 0 | I17: =$W9 -> 0 | K17: =$X9 -> 0 | M17: =$Y9 -> 0 | O17: =$Z9 -> 0 | P17: =$AA9 -> 0 | Q17: =$AB9 -> 0 | R17: Rundungskorrektur Vergabe
A18: Manuelle Rundung | H18: 0
A19: Gesamttotal (Netto) | H19: =SUM(H16:H18) -> 0 | I19: =SUM(I16:I17) -> 0 | K19: =SUM(K16:K17) -> 0 | M19: =SUM(M16:M17) -> 0 | O19: =SUM(O16:O17) -> 0 | P19: =SUM(P16:P17) -> 0 | Q19: =SUM(Q16:Q17) -> 0 | R19: =c_SummeGrundvertragNetto-c_SummeGrundvertragNettoVorKorrektur -> 0

Sheet 3_Eingabe_Nachtragsofferten (hidden)
B2: Nachtragsofferte(n)
AJ3: Ja
AD6: Vergleich Zeile | AE6: Vergleich Spalte
C7: 1 | D7: 2 | E7: 3 | F7: 4 | G7: 5 | H7: 6 | I7: 7 | J7: 8 | K7: 9 | L7: 10 | M7: 11 | O7: 13 | P7: 14 | Q7: 15 | R7: 16 | S7: 17 | U7: 19 | W7: 21 | Y7: 23 | Z7: 24 | AA7: 25 | AD7: =SMALL(IF(r_NachOffRang=1,ROW(r_NachOffRang)),ROW(A1))-11 ->  | AE7: =SMALL(IF(INDEX(r_NachOffRangErsatz,AD7):INDEX(r_NachOffRangMehrMinder,AD7)=1,COLUMN(AD:AG)),COUNTIF($AD$7:AD7,AD7)) ->  | AG7: =MAX(AI13:AL13) -> 0
J8: Eigene Nummerierung:
H9: Brutto | O9: Netto | U9: Alle Nachtragsofferten | W9: Vertrag (Vergabe + Nachtragsofferte(n) | AD9: Rang Nachtragsofferte | AI9: Absolutwerte zur Rangbestimmung Brutto | AO9: NachOff Netto vor Korrektur
H10: Ersatz | I10: Ersetzt | J10: Zusatz | K10: Mehr-/Minderausmass | L10: Eingabe Nachtrag Brutto Total | M10: Total | O10: Ersatz | P10: Ersetzt | Q10: Zusatz | R10: Mehr-/Minderausmass | S10: Total | U10: Netto | W10: Netto | AD10: Ersatz | AE10: Ersetzt | AF10: Zusatz | AG10: Mehr-/Minderausmass | AI10: Ersatz | AJ10: Ersetzt | AK10: Zusatz | AL10: Mehr-/Minderausmass | AM10: Total | AO10: Ersatz | AP10: Ersetzt | AQ10: Zusatz | AR10: Mehr-/Minderausmass | AS10: Total | AT10: MwSt. Betrag ohne NK, ZT, Teu | AU10: MwSt. Betrag nur Nebenkosten | AV10: MwSt. Betrag nur Zeittarif | AW10: MwSt. Betrag nur Teuerung
A11: Auswahl | B11: BKA | C11: Leistung | G11: Mwst-Satz | Y11: Index | Z11: Auftragszugehörigkeit | AA11: mit Abzug | AB11: Zeile Nr.
L12: =SUM(H12:K12) -> 0 | O12: =IF($AD12="",0,IF(AND($AD$7=$AB12,$AE$7=30),AO12+c_RundungskorrekturNachtragsofferte,AO12)) -> 0 | P12: =IF($AE12="",0,IF(AND($AD$7=$AB12,$AE$7=31),AP12+c_RundungskorrekturNachtragsofferte,AP12)) -> 0 | Q12: =IF($AF12="",0,IF(AND($AD$7=$AB12,$AE$7=32),AQ12+c_RundungskorrekturNachtragsofferte,AQ12)) -> 0 | R12: =IF($AG12="",0,IF(AND($AD$7=$AB12,$AE$7=33),AR12+c_RundungskorrekturNachtragsofferte,AR12)) -> 0 | S12: =SUM(O12:R12) -> 0 | U12: 0 | W12: ='2_Eingabe_Vertragsgrundlagen'!M6 -> 0 | AB12: 1 | AD12: =IF(AI12=0,"",IF(AI12=0,0,RANK(AI12,$AI12:$AL12))) ->  | AE12: =IF(AJ12=0,"",IF(AJ12=0,0,RANK(AJ12,$AI12:$AL12))) ->  | AF12: =IF(AK12=0,"",IF(AK12=0,0,RANK(AK12,$AI12:$AL12))) ->  | AG12: =IF(AL12=0,"",IF(AL12=0,0,RANK(AL12,$AI12:$AL12))) ->  | AI12: =IF(ABS(H12)="","",ABS(H12)) -> 0 | AJ12: =IF(ABS(I12)="","",ABS(I12)) -> 0 | AK12: =IF(ABS(J12)="","",ABS(J12)) -> 0 | AL12: =IF(ABS(K12)="","",ABS(K12)) -> 0 | AM12: =SUM(AI12:AL12) -> 0 | AO12: =IF(H12=0,0,IF(AND($Z12=5,$AA12="Nein"),ROUND(H12*(1+(IF($G12=1,c_NachtragMwst1,IF($G12=2,c_NachtragMwst2,c_NachtragMwst3))/100))/5,2)*5,IF(AND($Z12=6,$AA12="Nein"), ROUND(H12*(1+(IF($G12=1,c_NachtragMwst1,IF($G12=2,c_NachtragMwst2,c_NachtragMwst3))/100))/5,2)*5,IF(AND(OR($Z12=3,$Z12=7),$AA12="Nein"), ROUND(H12*(1+(IF($G12=1,c_NachtragMwst1,IF($G12=2,c_NachtragMwst2,c_NachtragMwst3))/100))/5,2)*5, ROUND(H12*c_NachtragFaktorRabatt*(1+(IF($G12=1,c_NachtragMwst1,IF($G12=2,c_NachtragMwst2,c_NachtragMwst3))/100))/5,2)*5)))) -> 0 | AP12: =IF(I12=0,0,IF(AND($Z12=5,$AA12="Nein"),ROUND(I12*(1+(IF($G12=1,c_NachtragMwst1,IF($G12=2,c_NachtragMwst2,c_NachtragMwst3))/100))/5,2)*5,IF(AND($Z12=6,$AA12="Nein"), ROUND(I12*(1+(IF($G12=1,c_NachtragMwst1,IF($G12=2,c_NachtragMwst2,c_NachtragMwst3))/100))/5,2)*5,IF(AND(OR($Z12=3,$Z12=7),$AA12="Nein"), ROUND(I12*(1+(IF($G12=1,c_NachtragMwst1,IF($G12=2,c_NachtragMwst2,c_NachtragMwst3))/100))/5,2)*5, ROUND(I12*c_NachtragFaktorRabatt*(1+(IF($G12=1,c_NachtragMwst1,IF($G12=2,c_NachtragMwst2,c_NachtragMwst3))/100))/5,2)*5)))) -> 0 | AQ12: =IF(J12=0,0,IF(AND($Z12=5,$AA12="Nein"),ROUND(J12*(1+(IF($G12=1,c_NachtragMwst1,IF($G12=2,c_NachtragMwst2,c_NachtragMwst3))/100))/5,2)*5,IF(AND($Z12=6,$AA12="Nein"), ROUND(J12*(1+(IF($G12=1,c_NachtragMwst1,IF($G12=2,c_NachtragMwst2,c_NachtragMwst3))/100))/5,2)*5,IF(AND(OR($Z12=3,$Z12=7),$AA12="Nein"), ROUND(J12*(1+(IF($G12=1,c_NachtragMwst1,IF($G12=2,c_NachtragMwst2,c_NachtragMwst3))/100))/5,2)*5, ROUND(J12*c_NachtragFaktorRabatt*(1+(IF($G12=1,c_NachtragMwst1,IF($G12=2,c_NachtragMwst2,c_NachtragMwst3))/100))/5,2)*5)))) -> 0 | AR12: =IF(K12=0,0,IF(AND($Z12=5,$AA12="Nein"),ROUND(K12*(1+(IF($G12=1,c_NachtragMwst1,IF($G12=2,c_NachtragMwst2,c_NachtragMwst3))/100))/5,2)*5,IF(AND($Z12=6,$AA12="Nein"), ROUND(K12*(1+(IF($G12=1,c_NachtragMwst1,IF($G12=2,c_NachtragMwst2,c_NachtragMwst3))/100))/5,2)*5,IF(AND(OR($Z12=3,$Z12=7),$AA12="Nein"), ROUND(K12*(1+(IF($G12=1,c_NachtragMwst1,IF($G12=2,c_NachtragMwst2,c_NachtragMwst3))/100))/5,2)*5, ROUND(K12*c_NachtragFaktorRabatt*(1+(IF($G12=1,c_NachtragMwst1,IF($G12=2,c_NachtragMwst2,c_NachtragMwst3))/100))/5,2)*5)))) -> 0 | AS12: =SUM(AO12:AR12) -> 0 | AT12: =IF(AA12="Ja",IF(G12<>"",c_NachtragFaktorRabatt*M12*(IF(G12=1,c_NachtragMwst1,IF(G12=2,c_NachtragMwst2,c_NachtragMwst3)))/100,0),0) -> 0 | AU12: =IF(AND(Z12=6,AA12="Nein"),L12*(IF(G12=1,c_NachtragMwst1,IF(G12=2,c_NachtragMwst2,c_NachtragMwst3)))/100,0) -> 0 | AV12: =IF(AND(Z12=5,AA12="Nein"),L12*(IF(G12=1,c_NachtragMwst1,IF(G12=2,c_NachtragMwst2,c_NachtragMwst3)))/100,0) -> 0 | AW12: =IF(AND(OR(Z12=3,Z12=7),AA12="Nein"),L12*(IF(G12=1,c_NachtragMwst1,IF(G12=2,c_NachtragMwst2,c_NachtragMwst3)))/100,0) -> 0
L13: 0 | O13: 0 | P13: 0 | Q13: 0 | R13: 0 | S13: 0 | U13: 0 | W13: ='2_Eingabe_Vertragsgrundlagen'!M7 -> 0 | AI13: 0 | AJ13: 0 | AK13: 0 | AL13: 0 | AM13: 0 | AO13: 0 | AP13: 0 | AQ13: 0 | AR13: 0 | AS13: 0 | AT13: 0 | AU13: 0 | AV13: 0 | AW13: 0
B16: Zwischentotal 1 | H16: =SUM(r_NachOffErsatzBrutto) -> 0 | I16: =SUM(r_NachOffErsetztBrutto) -> 0 | J16: =SUM(r_NachOffZusatzBrutto) -> 0 | K16: =SUM(r_NachOffMehrMinderBrutto) -> 0 | L16: =SUM(r_NachOffTotalBrutto) -> 0 | M16: =SUM(r_NachtragTotalAbzug) -> 0 | O16: =SUM(r_NachOffErsatzNettoMitKorrektur) -> 0 | P16: =SUM(r_NachOffErsetztNettoMitKorrektur) -> 0 | Q16: =SUM(r_NachOffZusatzNettoMitKorrektur) -> 0 | R16: =SUM(r_NachOffMehrMinderNettoMitKorrektur) -> 0 | S16: =SUM(r_NachOffTotalNettoMitKorrektur) -> 0 | U16: =SUM(r_NachOffTotalALLEproZeile) -> 0 | W16: =SUM(r_NachtragTotalVertrag) -> 0 | AS16: =SUM(r_NachOffNettoVorKorrektur) -> 0 | AT16: =SUM(r_NachtragMwstO3567) -> 0 | AU16: =SUM(r_NachtragMwst6) -> 0 | AV16: =SUM(r_NachtragMwst5) -> 0 | AW16: =SUM(r_NachtragMwst37) -> 0
B17: Rabatt | D17: - | E17: ='1_Eingabe_Grunddaten'!C32 -> 0 | F17: % | G17: =1-(E17/100) -> 1 | H17: Faktor Rabatt | M17: =-ROUND((c_SummeNachOffBrutto*'1_Eingabe_Grunddaten'!C32/100)/5,2)*5 -> 0
B18: Zwischentotal 2 | G18: 8 | H18: Mwst1 | M18: =SUM(M16:M17) -> 0 | O18: ohne | P18: nur | Q18: nur | R18: nur
B19: Zeittarif | G19: 0 | H19: Mwst2 | M19: 0 | O19: Nebenkosten | P19: Nebenkosten | Q19: Zeittarif | R19: Teuerung | Y19: Faktor
B20: Nebenkosten | G20: 0 | H20: Mwst3 | M20: 0 | O20: Zeittarif | Y20: =IF(c_SummeNachOffBrutto=0,1,(c_SummeNachOffMinusRabatt/c_SummeNachOffBrutto)) -> 1
B21: Teuerung | M21: 0 | O21: Teuerung
B22: Zwischentotal 3 | M22: =SUM(M18:M21) -> 0 | O22: =c_SummeNachOffMinusRabatt -> 0 | P22: =c_NachtragNebenkosten -> 0 | Q22: =c_NachtragZeittarif -> 0 | R22: =c_NachtragTeuerung -> 0
B23: MwSt | D23: + | E23: 7.7 | F23: % | M23: =IF('2_Eingabe_Vertragsgrundlagen'!F16>1,ROUND((O23+P23+Q23+R23)/5,2)*5,IF('2_Eingabe_Vertragsgrundlagen'!F16>0,ROUND(c_NachtragZwischentotal3*c_NachtragMwSt/100/5,2)*5,0)) -> 0 | O23: =ROUND(AT16/5,2)*5 -> 0 | P23: =ROUND(AU16/5,2)*5 -> 0 | Q23: =ROUND(AV16/5,2)*5 -> 0 | R23: =ROUND(AW16/5,2)*5 -> 0
B24: Manuelle Rundung | F24: Fr. | M24: 0
B25: Gesamttotal (Netto) | M25: =SUM(M22:M24) -> 0 | O25: =SUM(O22:O23) -> 0 | P25: =SUM(P22:P23) -> 0 | Q25: =SUM(Q22:Q23) -> 0 | R25: =SUM(R22:R23) -> 0
Y28: Rundungskorrektur-Nachtragsofferte
Y29: =c_SummeNachtragsofferteNetto-c_SummeNachOffNettoVorKorrektur -> 0
U31: Alle Nachtragsofferten | W31: Vertrag (Vergabe + Nachtragsofferte(n) | Y31: Total Netto aller Nachtragsofferten OHNE Neue
A32: Nr. | B32: BKA 1 | C32: Leistung 2 | F32: Eigene Nr. 5 | G32: Mwst-Satz 6 | H32: Ersatz 7 | I32: Ersetzt 8 | J32: Zusatz 9 | K32: Ausmass 10 | L32: Total 11 | M32: Total 12 | O32: Ersatz 14 | P32: Ersetzt 15 | Q32: Zusatz 16 | R32: Ausmass 17 | S32: Total 18 | U32: Netto 20 | W32: Netto 22 | Y32: Netto 24 | Z32: Auftragszugehörigkeit 25 | AA32: mit Abzug 26 | AB32: Begründung 27 | AF32: Index 31 | AG32: Datum 32 | AI32: Rabatt 34 | AJ32: Manuelle Rundung 35 | AK32: Zwischentotal 36 | AL32: MwSt 37 | AN32: Gesamttotal Netto 39 | AO32: Nebenkosten 40 | AP32: Zeittarif 41 | AQ32: Teuerung 42 | AR32: Zwischentotal3 43 | AT32: MwSt-Satz 45 | AU32: Leistungsjahr 46

Sheet 4_Eingabe_Rechnungen (hidden)
B2: Rechnung(en)
U3: Akkord = 1
U4: Regie = 2
U5: Teuerung = 3
U6: Kostentarif = 4
K7: Eigene Nummerierung: | P7: Schlussrechnung | U7: Zeittarif = 5
P8: Ja | U8: Nebenkosten = 6 | AM8: aus Ablage eintragen | AO8: berechnet | AP8: aus Ablage eintragen | AR8: berechnet | AS8: berechnet
U9: Teuerung = 7 | AA9: AA12 | AD9: berechnet
J10: Teilleistung | M10: Abgerechnete Leistung Gesamt | P10: Bis und mit AZ 0 abgerechnete Leistungen | AE10: Vergleich | AF10: MwSt. Betrag ohne NK, ZT, Teu | AG10: MwSt. Betrag nur Nebenkosten | AH10: MwSt. Betrag nur Zeittarif | AI10: MwSt. Betrag nur Teuerung | AJ10: MwSt. Betrag nur Nebenkosten mit Abzug | AK10: MwSt. Betrag nur Zeittarif mit Abzug | AM10: Betrag Garantierückbehalt n-1 37 | AN10: Betrag Garantierückbehalt n 38 | AO10: Korrektur Schlussrechnung Garantierückbehalt 39 | AP10: Betrag Auszahlung Garantierückbehalt n-1 40 | AQ10: Betrag Auszahlung Garantierückbehalt n 41 | AR10: Korrektur Schlussrechnung Auszahlung Garantierückbehalt 42 | AS10: Variable Mwst 43 | AT10: Garantierückbehalt inkl. Mwst. 44 | AV10: Rundung Betrag ohne NK, ZT, Teu 46 | AW10: Rundung Betrag nur Nebenkosten 47 | AX10: Rundung Betrag nur Zeittarif 48 | AY10: Rundung Betrag nur Teuerung 49 | AZ10: Rundung Betrag nur Nebenkosten mit Abzug 50 | BA10: Rundung Betrag nur Zeittarif mit Abzug 51
A11: Auswahl | B11: BKA 0 | C11: Leistung 1 | G11: Mwst-Satz | J11: 8 Brutto | K11: 9 Netto | M11: 11 Brutto | N11: 12 Netto | P11: 14 Brutto | Q11: 15 Netto | S11: Index 17 | T11: Rundungskorrektur bisher 18 | U11: Auftragszugehörigkeit 19 | V11: Brutto Neu für Rangberechnung 20 | W11: Netto Neu ohne Mwst | X11: mit Abzügen 22 | Y11: Zeile Nr. 23 | AA11: Rang Rechnung 25 | AB11: Rundungskorrektur Rechnung 26 | AC11: Netto vor Korrektur 27 | AD11: Variable Mwst. 28 | AE11: =IF(INDIRECT(AA9)="","",MATCH(1,r_RangRechnung,0)) -> 
J12: =H12 -> 0 | K12: =ROUND(SUM(N12-Q12)/5,2)*5 -> 0 | N12: =IF(c_RechnungSchlussrechnung="Ja",IF(Y12=c_VergleichRechnung,ROUND(($AC12+c_RundungskorrekturRechnung+$T12)/5,2)*5,ROUND(($AC12+$T12)/5,2)*5),IF(Y12=c_VergleichRechnung,ROUND(($AC12+c_RundungskorrekturRechnung+$T12)/5,2)*5,ROUND(($AC12+$T12)/5,2)*5)) -> 0 | V12: =IF((H12)<0,(H12)*-1,(H12)) -> 0 | W12: =IF(AND(J12=0,P12=0),0,IF(X12="Ja",(((P12+J12)*(100-c_RechnungRabattProzent)/100)-AN12+AQ12)*(100-c_RechnungSkontoProzent)/100,P12+J12)) -> 0 | Y12: 1 | AA12: =IF(AND(V12=0,H12=""),"",RANK(V12,r_RechnungRangBruttoNeu,0)) ->  | AB12: =IF(c_RechnungSchlussrechnung="Ja",IF(Y12=c_VergleichRechnung,c_RundungskorrekturRechnung+T12,0),IF(Y12=c_VergleichRechnung,c_RundungskorrekturRechnung,0)) -> 0 | AC12: =IF(AND(J12=0,P12=0),0,IF(X12="Ja",IF(U12=5,ROUND((W12+AK12+AS12)/5,2)*5,IF(U12=6,ROUND((W12+AJ12+AS12)/5,2)*5,ROUND((W12+AF12+AS12)/5,2)*5)),IF(U12=5,ROUND((W12+AH12+AS12)/5,2)*5,IF(U12=6,ROUND((W12+AG12+AS12)/5,2)*5,ROUND((W12+AI12+AS12)/5,2)*5)))) -> 0 | AD12: =IF(c_RechnungSchlussrechnung="Nein",ROUND(AS12/5,2)*5,IF(X12="Nein",ROUND(AS12/5,2)*5,ROUND((AS12+AO12-AR12)/5,2)*5)) -> 0 | AF12: =IF(AND($X12="Ja",OR($U12=1,$U12=2,$U12=4)),IF($G12<>"",$W12*(IF($G12=1,c_RechnungMwst1,IF($G12=2,c_RechnungMwst2,c_RechnungMwst3)))/100,0),0) -> 0 | AG12: =IF(AND($U12=6,$X12="Nein"),W12*(IF($G12=1,c_RechnungMwst1,IF($G12=2,c_RechnungMwst2,c_RechnungMwst3)))/100,0) -> 0 | AH12: =IF(AND($U12=5,$X12="Nein"),W12*(IF($G12=1,c_RechnungMwst1,IF($G12=2,c_RechnungMwst2,c_RechnungMwst3)))/100,0) -> 0 | AI12: =IF(AND(OR($U12=3,$U12=7),$X12="Nein"),W12*(IF($G12=1,c_RechnungMwst1,IF($G12=2,c_RechnungMwst2,c_RechnungMwst3)))/100,0) -> 0 | AJ12: =IF(AND($U12=6,$X12="Ja"),W12*(IF($G12=1,c_RechnungMwst1,IF($G12=2,c_RechnungMwst2,c_RechnungMwst3)))/100,0) -> 0 | AK12: =IF(AND($U12=5,$X12="Ja"),W12*(IF($G12=1,c_RechnungMwst1,IF($G12=2,c_RechnungMwst2,c_RechnungMwst3)))/100,0) -> 0 | AM12: 0 | AN12: =IF(c_ProduktRechnungGarantierueckbehaltProzent+c_ProduktRechnungGarantierueckbehaltSIA+c_RechnungenManuelleRundungGarantierueckbehalt=0,0,IF(X12="Nein",0,IF($G12<>"",(c_ProduktRechnungGarantierueckbehaltProzent+c_ProduktRechnungGarantierueckbehaltSIA+c_RechnungenManuelleRundungGarantierueckbehalt)/c_SummeRechnungGesamtBrutto*$M12*(-1),0))) -> 0 | AO12: 0 | AP12: 0 | AQ12: =IF(c_RechnungenAuszahlungGarantierueckbehalt=0,0,IF(X12="Nein",0,IF($G12<>"",IF($H$16=0,AP12+(c_RechnungenNeuAuszGrantie/$AN$16*AN12),AP12+(c_RechnungenNeuAuszGrantie/$AN$16*AN12)),0))) -> 0 | AR12: 0 | AS12: 0 | AT12: =IF(G12=1,((AN12-AQ12)*(100+c_RechnungMwst1)/100)+AO12-AR12,IF(G12=2,((AN12-AQ12)*(100+c_RechnungMwst2)/100)+AO12-AR12,((AN12-AQ12)*(100+c_RechnungMwst3)/100)+AO12-AR12)) -> 0 | AV12: =IF(c_RechnungRundungsdifferenz-$T$35<>0,IF(AND($X12="Ja",OR($U12=1,$U12=2,$U12=4),$Y12=c_VergleichRechnung),c_RechnungRundungsdifferenz-$T$35,0),0) -> 0 | AW12: =IF(c_RechnungRundungsdifferenz-$T$35<>0,IF(AND($U12=6,$X12="Nein",$Y12=c_VergleichRechnung),c_RechnungRundungsdifferenz-$T$35,0),0) -> 0 | AX12: =IF(c_RechnungRundungsdifferenz-$T$35<>0,IF(AND($U12=5,$X12="Nein",Y12=c_VergleichRechnung),c_RechnungRundungsdifferenz-$T$35,0),0) -> 0 | AY12: =IF(c_RechnungRundungsdifferenz-$T$35<>0,IF(AND(OR($U12=3,$U12=7),$X12="Nein",Y12=c_VergleichRechnung),c_RechnungRundungsdifferenz-$T$35,0),0) -> 0 | AZ12: =IF(c_RechnungRundungsdifferenz-$T$35<>0,IF(AND($U12=6,$X12="Ja",Y12=c_VergleichRechnung),c_RechnungRundungsdifferenz-$T$35,0),0) -> 0 | BA12: =IF(c_RechnungRundungsdifferenz-$T$35<>0,IF(AND($U12=5,$X12="Ja",Y12=c_VergleichRechnung),c_RechnungRundungsdifferenz-$T$35,0),0) -> 0
J13: 0 | K13: 0 | N13: 0 | V13: 0 | W13: 0 | AB13: 0 | AC13: 0 | AD13: 0 | AF13: 0 | AG13: 0 | AH13: 0 | AI13: 0 | AJ13: 0 | AK13: 0 | AN13: 0 | AQ13: =IF(c_RechnungenAuszahlungGarantierueckbehalt=0,0,IF(X13="Nein",0,IF($G13<>"",IF($H$16=0,AP13+(c_RechnungenNeuAuszGrantie/$AN$16*AN13),AP13+(c_RechnungenNeuAuszGrantie/$AN$16*AN13)),0))) -> 0 | AT13: 0 | AV13: =IF(c_RechnungRundungsdifferenz-$T$35<>0,IF(AND($X13="Ja",OR($U13=1,$U13=2,$U13=4),$Y13=c_VergleichRechnung),c_RechnungRundungsdifferenz-$T$35,0),0) -> 0 | AW13: =IF(c_RechnungRundungsdifferenz-$T$35<>0,IF(AND($U13=6,$X13="Nein",$Y13=c_VergleichRechnung),c_RechnungRundungsdifferenz-$T$35,0),0) -> 0 | AX13: =IF(c_RechnungRundungsdifferenz-$T$35<>0,IF(AND($U13=5,$X13="Nein",Y13=c_VergleichRechnung),c_RechnungRundungsdifferenz-$T$35,0),0) -> 0 | AY13: =IF(c_RechnungRundungsdifferenz-$T$35<>0,IF(AND(OR($U13=3,$U13=7),$X13="Nein",Y13=c_VergleichRechnung),c_RechnungRundungsdifferenz-$T$35,0),0) -> 0 | AZ13: =IF(c_RechnungRundungsdifferenz-$T$35<>0,IF(AND($U13=6,$X13="Ja",Y13=c_VergleichRechnung),c_RechnungRundungsdifferenz-$T$35,0),0) -> 0 | BA13: =IF(c_RechnungRundungsdifferenz-$T$35<>0,IF(AND($U13=5,$X13="Ja",Y13=c_VergleichRechnung),c_RechnungRundungsdifferenz-$T$35,0),0) -> 0
T15: =SUM(r_RechnungRundungBisher) -> 0
B16: Abgerechnete Leistungen | H16: =SUMIF(r_RechnungBisherEingabe56,"Ja",r_RechnungBruttoEingaben) -> 0 | J16: =SUM(r_RechnungNeuBrutto) -> 0 | K16: =SUM(r_RechnungNeuNetto) -> 0 | M16: =SUM(r_RechnungGesamtBrutto) -> 0 | N16: =SUM(r_RechnungGesamtNetto) -> 0 | P16: =SUM(r_RechnungBisherigeBrutto) -> 0 | Q16: =SUM(r_RechnungBisherigeNetto) -> 0 | T16: =SUM(r_RechnungGesamtBrutto) -> 0 | V16: =SUM(r_RechnungRangBruttoNeu) -> 0 | W16: =SUM(r_RechnungNettoNeuOhneMwst) -> 0 | AB16: =SUM(AB12:AB13) -> 0 | AC16: =SUM(r_RechnungNettoVorKorrektur)+T15 -> 0 | AD16: =SUM(r_RechnungVarMwst) -> 0 | AF16: =SUM(r_RechnungMwstOhne3567) -> 0 | AG16: =SUM(r_RechnungMwstOhne6) -> 0 | AH16: =SUM(r_RechnungMwstOhne5) -> 0 | AI16: =SUM(r_RechnungMwstOhne37) -> 0 | AJ16: =SUM(r_RechnungMwstMit6) -> 0 | AK16: =SUM(r_RechnungMwstMit5) -> 0 | AM16: =SUM(AM12:AM13) -> 0 | AN16: 0 | AO16: 0 | AP16: 0 | AQ16: 0 | AR16: 0 | AS16: 0 | AT16: =ROUND(SUM(AT12:AT13)/5,2)*5 -> 0 | AV16: =SUM(AV12:AV13) -> 0 | AW16: 0 | AX16: 0 | AY16: 0 | AZ16: 0 | BA16: 0
B17: Rabatt | C17: - | D17: ='1_Eingabe_Grunddaten'!C32 -> 0 | M17: =-ROUND((c_SummeRechnungGesamtBrutto*'1_Eingabe_Grunddaten'!C32/100)/5,2)*5 -> 0 | T17: =(c_SummeRechnungGesamtBrutto*'1_Eingabe_Grunddaten'!C32/100)*-1 -> 0
B18: Manuelle Rundung Rabatt | E18: Fr. | M18: 0 | T18: =c_RechnungenManuelleRundungRabatt -> 0
B19: Subtotal 1 | G19: 7.7 | H19: Mwst1 | M19: =c_SummeRechnungGesamtBrutto+c_ProduktRabattRechnung+c_RechnungenManuelleRundungRabatt -> 0 | T19: =SUM(T16:T18) -> 0 | W19: =IF(AND(J19=0,P19=0),0,IF(X19="Ja",IF(U19=5,(ROUND((P19*c_RechnungFaktorNetto+c_RechnungVarMwStZeittarifMAbzug+J19*c_RechnungFaktorNetto)/5,2)*5),IF(U19=6,(ROUND((P19*c_RechnungFaktorNetto*+c_RechnungVarMwStNebenkostenMAbzug+J19*c_RechnungFaktorNetto)/5,2)*5),(ROUND((P19*c_RechnungFaktorNetto+AD19+J19*c_RechnungFaktorNetto)/5,2)*5))),IF(U19=5,(ROUND((P19+c_RechnungVarMwStZeittarif+J19)/5,2)*5),IF(U19=6,(ROUND((P19+c_RechnungVarMwStNebenkosten+J19)/5,2)*5),IF(OR(U19=3,U19=7),(ROUND((P19+c_RechnungVarMwStTeuerung+J19)/5,2)*5)))))) -> 0 | AF19: 1 | AG19: 2 | AH19: 3 | AI19: 4 | AJ19: 5 | AK19: 6 | AL19: Spalten Nr. | AM19: Vergleich
B20: Garantierückbehalt | C20: - | D20: =IF(c_RechnungSchlussrechnung = "Nein",IF(c_GarantierueckbehaltProzentODERsia="FALSCH",'1_Eingabe_Grunddaten'!C33,0),0) -> 0 | E20: % | G20: 0 | H20: Mwst2 | M20: =IF(P8="Nein",IF(c_GarantierueckbehaltProzentODERsia="FALSCH",-ROUND(c_SummeRechnungMinusRabattSUBTOTAL1*'1_Eingabe_Grunddaten'!C33/100*20,0)/20,0),0) -> 0 | T20: =IF(P8="Nein",IF(c_GarantierueckbehaltProzentODERsia="FALSCH",-c_SummeRechnungMinusRabattSUBTOTAL1*'1_Eingabe_Grunddaten'!C33/100,0),0) -> 0 | AF20: =IF(AF16=0,"",RANK(AF16,r_RechnungRangTotal,0)) ->  | AL20: Rang Rechnung Total | AM20: =MATCH(1,r_RangRechnungTotal,0) -> 
B21: Garantierückbehalt nach SIA | D21: =IF(c_RechnungSchlussrechnung="Nein",IF(c_GarantierueckbehaltProzentODERsia="WAHR",-c_ProduktRechnungGarantierueckbehaltSIA/c_SummeRechnungMinusRabattSUBTOTAL1*100,IF(c_GarantierueckbehaltProzentODERsia="WAHRneu",-c_ProduktRechnungGarantierueckbehaltSIA/c_SummeRechnungMinusRabattSUBTOTAL1*100,0)),0) -> 0 | E21: % | G21: 0 | H21: Mwst3 | M21: =IF(P8="Nein",IF(c_GarantierueckbehaltProzentODERsia="WAHR",IF(c_SummeRechnungMinusRabattSUBTOTAL1<=300000,-ROUND(c_SummeRechnungMinusRabattSUBTOTAL1*10/100/5,2)*5,IF(AND(c_SummeRechnungMinusRabattSUBTOTAL1>300000,c_SummeRechnungMinusRabattSUBTOTAL1<=600000),-30000,IF(AND(c_SummeRechnungMinusRabattSUBTOTAL1>600000,c_SummeRechnungMinusRabattSUBTOTAL1<=20000000),-ROUND(c_SummeRechnungMinusRabattSUBTOTAL1*5/100/5,2)*5,-1000000))),IF(c_GarantierueckbehaltProzentODERsia="WAHRneu",IF(c_SummeRechnungMinusRabattSUBTOTAL1<=500000,-ROUND(c_SummeRechnungMinusRabattSUBTOTAL1*10/100/5,2)*5,IF(AND(c_SummeRechnungMinusRabattSUBTOTAL1>500000,c_SummeRechnungMinusRabattSUBTOTAL1<=1000000),-50000,IF(AND(c_SummeRechnungMinusRabattSUBTOTAL1>1000000,c_SummeRechnungMinusRabattSUBTOTAL1<=40000000),-ROUND(c_SummeRechnungMinusRabattSUBTOTAL1*5/100/5,2)*5,-2000000))),0)),0) -> 0 | T21: =IF(P8="Nein",IF(c_GarantierueckbehaltProzentODERsia="WAHR",IF(c_SummeRechnungMinusRabattSUBTOTAL1<=300000,-ROUND(c_SummeRechnungMinusRabattSUBTOTAL1*10/100/5,2)*5,IF(AND(c_SummeRechnungMinusRabattSUBTOTAL1>300000,c_SummeRechnungMinusRabattSUBTOTAL1<=600000),-30000,IF(AND(c_SummeRechnungMinusRabattSUBTOTAL1>600000,c_SummeRechnungMinusRabattSUBTOTAL1<=20000000),-c_SummeRechnungMinusRabattSUBTOTAL1*5/100,-1000000))),IF(c_GarantierueckbehaltProzentODERsia="WAHRneu",IF(c_SummeRechnungMinusRabattSUBTOTAL1<=500000,-c_SummeRechnungMinusRabattSUBTOTAL1*10/100,IF(AND(c_SummeRechnungMinusRabattSUBTOTAL1>500000,c_SummeRechnungMinusRabattSUBTOTAL1<=1000000),-50000,IF(AND(c_SummeRechnungMinusRabattSUBTOTAL1>1000000,c_SummeRechnungMinusRabattSUBTOTAL1<=40000000),-c_SummeRechnungMinusRabattSUBTOTAL1*5/100,-2000000))),0)),0) -> 0
B22: Manuelle Rundung Garantierückbehalt | M22: 0 | Q22: Subtotal3 / Abgerech. Leistung | T22: =c_RechnungenManuelleRundungGarantierueckbehalt -> 0
B23: Auszahlung Garantierückbehalt | M23: 0 | N23: 0 | P23: Neu | Q23: =T28/T16 ->  | T23: =c_RechnungenAuszahlungGarantierueckbehalt -> 0
B24: Garantierückbehalt Total | M24: =SUM(M20:M23) -> 0 | T24: =SUM(T20:T23) -> 0
B25: Subtotal 2 | M25: =SUM(c_SummeRechnungMinusRabattSUBTOTAL1,c_SummeRechnungGarantierueckbehaltTotal) -> 0 | T25: =T19+T24 -> 0
B26: Skonto | C26: - | D26: ='1_Eingabe_Grunddaten'!C34 -> 0 | E26: % | J26: Brutto | K26: Brutto | M26: =-ROUND((c_SummeRechnungSUBTOTAL2*'1_Eingabe_Grunddaten'!C34/100)/5,2)*5 -> 0 | N26: Brutto | T26: =-(c_SummeRechnungSUBTOTAL2*'1_Eingabe_Grunddaten'!C34/100) -> 0
B27: Manuelle Rundung Skonto | J27: 0 | K27: 0 | M27: 0 | N27: 0 | T27: =c_RechnungenManuelleRundungSkonto -> 0
B28: Subtotal 3 | J28: nur | K28: nur | M28: =SUM(c_SummeRechnungSUBTOTAL2,c_ProduktRechnungSkonto,c_RechnungenManuelleRundungSkonto) -> 0 | N28: ohne | P28: nur | Q28: nur | S28: nur | T28: =T25+T26+T27 -> 0
B29: Nebenkosten | J29: Nebenkosten | K29: Zeittarif | M29: 0 | N29: Nebenkosten | P29: Nebenkosten | Q29: Zeittarif | S29: Teuerung
B30: Zeittarif | J30: mit Abzug | K30: mit Abzug | M30: 0 | N30: Zeittarif | P30: ohne Abzug | Q30: ohne Abzug | S30: ohne Abzug
B31: Teuerung | M31: 0 | N31: Teuerung
B32: Subtotal 4 | J32: =IF(J27=0,0,J27*c_SummeRechnungSUBTOTAL3/c_SummeRechnungGesamtBrutto) -> 0 | K32: =IF(K27=0,0,K27*c_SummeRechnungSUBTOTAL3/c_SummeRechnungGesamtBrutto) -> 0 | M32: =c_SummeRechnungSUBTOTAL3+c_RechnungNebenkosten+c_RechnungZusatzleistungen+c_RechnungTeuerung -> 0 | N32: =IF(N27=0,0,N27*c_SummeRechnungSUBTOTAL3/c_SummeRechnungGesamtBrutto) -> 0 | P32: =c_RechnungNebenkosten -> 0 | Q32: =SUM(c_RechnungZusatzleistungen) -> 0 | S32: =SUM(c_RechnungTeuerung) -> 0
B33: MwSt | C33: + | D33: 7.7 | E33: % | F33: =1+(c_RechnungMwStProzent/100) -> 1.077 | J33: =ROUND(AJ16/5,2)*5 -> 0 | K33: =ROUND(AK16/5,2)*5 -> 0 | M33: =IF('2_Eingabe_Vertragsgrundlagen'!F16>1,ROUND((N33+P33+Q33+S33+J33+K33)/5,2)*5,IF('2_Eingabe_Vertragsgrundlagen'!F16>0,ROUND(c_SummeRechnungSUBTOTAL4*c_RechnungMwStProzent/100/5,2)*5,0)) -> 0 | N33: =ROUND(AF16/5,2)*5 -> 0 | P33: =ROUND(AG16/5,2)*5 -> 0 | Q33: =ROUND(AH16/5,2)*5 -> 0 | S33: =ROUND(AI16/5,2)*5 -> 0
B34: Variable MwSt | J34: 0 | K34: 0 | M34: =c_RechnungSummeVarMwst -> 0 | N34: 0 | P34: 0 | Q34: 0 | S34: 0 | T34: Rundungsdifferenz bisher
B35: Rundungsdifferenz | J35: 0 | K35: 0 | M35: 0 | N35: 0 | P35: 0 | Q35: 0 | S35: 0 | T35: 0
B36: Subtotal 54 | J36: =SUM(J32:J35) -> 0 | K36: =SUM(K32:K35) -> 0 | M36: =SUM(M32:M35) -> 0 | N36: =SUM(N32:N35) -> 0 | P36: =SUM(P32:P35) -> 0 | Q36: =SUM(Q32:Q35) -> 0 | S36: =SUM(S32:S35) -> 0
B37: AZ (inkl. MwSt) | M37: =c_RechnungBisherigeNetto -> 0 | N37: =IF(N27=0,0,c_SummeRechnungSUBTOTAL5ohne56/N27) -> 0 | P37: Berechnungsfaktor normal
B38: Total Anweisungsbetrag | M38: =SUM(c_SummeRechnungSUBTOTAL5,-c_RechnungBisherigeNetto) -> 0 | N38: =IF(N27=0,0,(c_SummeRechnungSUBTOTAL5ohne56-N34)/N27) -> 0 | P38: Berechnungsfaktor var MwSt | S38: Rundungskorrektur Rechnung
N39: =IF(AND(c_RechnungBruttoohne56=0,c_SummeRechnungSUBTOTAL5ohne56=0),0,c_SummeRechnungSUBTOTAL5ohne56/c_RechnungBruttoohne56) -> 0 | P39: Berechnungsfaktor total | S39: =c_SummeRechnungSUBTOTAL5-c_SummeRechnungNettoVorKorrektur -> 0
BY40: Rundungsdifferenz Total
A41: Nr. | B41: BKA 1 | C41: Leistung 2 | F41: Eigene Nummer 5 | G41: Mwst-Satz 6 | H41: Eingabe der abgerechneten Leistungen Brutto | J41: Abgerechnete Leistung Neu Bruto 9 | K41: Abgerechnete Leistung Neu Netto 10 | M41: Gesamte abgerechnete Leistung Brutto 12 | N41: Gesamte abgerechnete Leistung Netto 13 | P41: Bis und mit letzte AZ abgerechnete Leitung Brutto 15 | Q41: Bis und mit letzte AZ abgerechnete Leistung Netto 16 | S41: Rechnungsnummer 18 | T41: Index 19 | U41: Auftragszugehörigkeit 20 | V41: Rechnungsdatum 21 | W41: Rundungskorrektur 22 | X41: Rabatt 23 | Y41: Manuelle Rundung Rabatt 24 | Z41: Subtotal 1 25 | AA41: Garantierückbehalt 26 | AB41: Garantierückbehalt nach SIA 27 | AC41: Manuelle Rundung Garantierückbehalt 28 | AD41: Total Garantierückbehalt 29 | AE41: Subtotal 2 30 | AF41: Skonto 31 | AG41: Subtotal 3 32 | AH41: MwSt 33 | AI41: Variable MwSt Total 34 | AJ41: Subtotal 4 35 | AK41: AZ (inkl. MwSt.) 36 | AL41: Total Anweisungsbetrag 37 | AM41: Schlussrechnung 38 | AN41: Rundungsdifferenz 39 | AO41: Nebenkosten 40 | AP41: Zeittarif 41 | AQ41: Subtotal 5 42 | AR41: mit Abzügen 43 | AS41: Art Leistung Alle oder Neue 44 | AT41: Garantierückbehalt nach SIA % 45 | AU41: Teuerung 46 | AV41: Auszahlung Garantie 47 | AW41: Subtotal 5 ohne 5-6 48 | AX41: Subtotal 5 nur 6 ohne Abzug 49 | AY41: Subtotal 5 nur 5 50 | AZ41: Subtotal 5 nur 3-7 51 | BA41: Subtotal 5 nur 6 mit Abzug 52 | BB41: Subtotal 5 nur 5 mit Abzug 53 | BC41: Berechnungsfaktor normal 54 | BD41: Berechnungsfaktor var 55 | BE41: Subtotal 4 nur 5 mit Abzug 56 | BF41: Subtotal 4 nur 6 mit Abzug 57 | BG41: Subtotal 4 ohne 5 6 mit Abzug 58 | BH41: Subtotal 4 nur 5 ohne Abzug 59 | BI41: Subtotal 4 nur 6 ohne Abzug 60 | BJ41: Subtotal 4 nur 7 ohne Abzug 61 | BK41: Berechnungsfaktor Total 62 | BL41: Manuelle Rundung Skonto 63 | BM41: Faktor Sub4 64 | BN41: Netto ohne Mwst 65 | BO41: Variable Mwst 66 | BP41: Mwst % 67 | BQ41: Leistungsjahr 68 | BR41: Betrag Garantierückbehalt n-1 69 | BS41: Betrag Garantierückbehalt n 70 | BT41: Korrektur Schlussrechnung Garantierückbehalt 71 | BU41: Betrag Auszahlung Garantierückbehalt n-1 72 | BV41: Betrag Auszahlung Garantierückbehalt n 73 | BW41: Korrektur Schlussrechnung Auszahlung Garantierückbehalt 74 | BX41: Garantierückbehalt inkl. Mwst 75 | BY41: Rundung Betrag ohne NK, ZT, Teu 76 | BZ41: Rundung Betrag nur Nebenkosten 77 | CA41: Rundung Betrag nur Zeittarif 78 | CB41: Rundung Betrag nur Teuerung 79 | CC41: Rundung Betrag nur Nebenkosten mit Abzug 80 | CD41: Rundung Betrag nur Zeittarif mit Abzug 81

Sheet 5_Eingabe_Variable_MwSt (hidden)
A3: Mehrwertsteuer-Sätze | F3: Korrekturbetrag MwSt-Wechsel
A7: MwSt.-Satz | B7: Gültig von | C7: Gültig bis | D7: Index | F7: Rechnungsnummer | G7: Datum 1 | H7: Abgerechnete Leistung ohne MwSt. (Subtotal 4) 2 | I7: alter MwSt-Satz 1 3 | J7: neuer MwSt-Satz 1 4 | K7: Differenz 5 | L7: Betrag 6 | M7: alter MwSt-Satz 2 7 | N7: neuer MwSt-Satz 2 8 | O7: alter MwSt-Satz 3 9 | P7: neuer MwSt-Satz 3 10
A8: 6.5 | B8: 1995-01-01 | C8: 1998-12-31 | D8: 1
A9: 7.5 | B9: 1999-01-01 | C9: 2000-12-31 | D9: 2
A10: 7.6 | B10: 2001-01-01 | C10: 2010-12-31 | D10: 3
A11: 8 | B11: 2011-01-01 | C11: 2017-12-31 | D11: 4
A12: 7.7 | B12: 2018-01-01 | C12: 2023-12-31 | D12: 5
A13: 8.1 | B13: 2024-01-01 | D13: 6
A20: 2 | B20: 1995-01-01 | C20: 1998-12-31 | D20: 1
A21: 2.3 | B21: 1999-01-01 | C21: 2000-12-31 | D21: 2
A22: 2.4 | B22: 2001-01-01 | C22: 2010-12-31 | D22: 3
A23: 2.5 | B23: 2011-01-01 | C23: 2023-12-31 | D23: 4
A24: 2.6 | B24: 2024-01-01 | D24: 5
A32: 0 | B32: 1995-01-01 | D32: 1
A44: 8.1 | B44: 2.6 | C44: 0
A45: 7.7 | B45: 2.5 | C45: 0
A46: 8 | B46: 2.5 | C46: 0
A47: 7.6 | B47: 2.4 | C47: 0
A48: 7.5 | B48: 2.3 | C48: 0
A49: 6.5 | B49: 2 | C49: 0

Sheet 6_Eingabe_Buergschaften (hidden)
A2: Nr. | B2: Solidarbürge Name | C2: Solidarbürge Adresse | D2: Bürgschaft vom | E2: Garantieschein-Nr. | F2: Gültig bis | G2: Betrag

Sheet 7_Ausdruck_Nachtragsofferte (hidden)
A1: =IF(VLOOKUP(c_Zustaendig,r_Briefkopf,2,FALSE)>0,VLOOKUP(c_Zustaendig,r_Briefkopf,2,FALSE),"") -> Kanton St.Gallen
A2: =IF(VLOOKUP(c_Zustaendig,r_Briefkopf,3,FALSE)>0,VLOOKUP(c_Zustaendig,r_Briefkopf,3,FALSE),"") -> Bau- und Umweltdepartement
A4: =IF(VLOOKUP(c_Zustaendig,r_Briefkopf,4,FALSE)>0,VLOOKUP(c_Zustaendig,r_Briefkopf,4,FALSE),"") -> Tiefbauamt
A5: =IF(VLOOKUP(c_Zustaendig,r_Briefkopf,26,FALSE)>0,VLOOKUP(c_Zustaendig,r_Briefkopf,26,FALSE),"") -> Amtsleitung
A8: Nachtragsofferte Nr. | I8: 2 | U8: Bau | X8: 615300.501100
A9: Eigene Nummerierung | I9: abcdefghijklmnopqrstuvwxyz abcdefghijklmnopqrstuvwxyz abcdefghijklmnopqrstuvwxyz | U9: RRB/AS Nr. | X9: 18.32040
A11: =IF(VLOOKUP(c_Zustaendig,r_Briefkopf,5,FALSE)="Gebietseinheit VI","",IF(VLOOKUP(c_Zustaendig,r_Briefkopf,7,FALSE)>0,VLOOKUP(c_Zustaendig,r_Briefkopf,7,FALSE),"")) -> Gemeinde / Objekt / Baulos | I11: =IF(VLOOKUP(c_Zustaendig,r_Briefkopf,5,FALSE)="GEVI","",IF('1_Eingabe_Grunddaten'!C11 = "","",'1_Eingabe_Grunddaten'!C11)) -> 
A12: Art der Arbeit oder Lieferung | I12: =IF('1_Eingabe_Grunddaten'!C12="","",'1_Eingabe_Grunddaten'!C12) -> 
A14: Angebot | F14: vom | H14: =IF('1_Eingabe_Grunddaten'!C22="","",'1_Eingabe_Grunddaten'!C22) ->  | O14: =IF(VLOOKUP(c_Zustaendig,r_Briefkopf,8,FALSE)>0,VLOOKUP(c_Zustaendig,r_Briefkopf,8,FALSE),"") -> KOA / Pos. | V14: =IF('1_Eingabe_Grunddaten'!C10="","",'1_Eingabe_Grunddaten'!C10) -> 
A15: Werk-/Ingenieurvertrag | F15: vom | H15: =IF('1_Eingabe_Grunddaten'!C23="","",'1_Eingabe_Grunddaten'!C23) ->  | O15: =IF(VLOOKUP(c_Zustaendig,r_Briefkopf,10,FALSE)>0,VLOOKUP(c_Zustaendig,r_Briefkopf,10,FALSE),"") -> Kanton St.Gallen | U15: =IF(VLOOKUP(c_Zustaendig,r_Briefkopf,11,FALSE)>0,VLOOKUP(c_Zustaendig,r_Briefkopf,11,FALSE),"") -> Nr. | V15: =IF(VLOOKUP(c_Zustaendig,r_Briefkopf,12,FALSE)>0,VLOOKUP(c_Zustaendig,r_Briefkopf,12,FALSE),"") -> 17
A16: RRB/AS | F16: vom | H16: =IF('1_Eingabe_Grunddaten'!C26="","",'1_Eingabe_Grunddaten'!C26) ->  | J16: Fr. | L16: ='1_Eingabe_Grunddaten'!C27 -> 0 | O16: =IF(VLOOKUP(c_Zustaendig,r_Briefkopf,13,FALSE)>0,VLOOKUP(c_Zustaendig,r_Briefkopf,13,FALSE),"") -> Schweiz. Hauptstrasse(n) | U16: =IF(VLOOKUP(c_Zustaendig,r_Briefkopf,14,FALSE)>0,VLOOKUP(c_Zustaendig,r_Briefkopf,14,FALSE),"") -> Nr. | V16: =IF(OR(O16="",'1_Eingabe_Grunddaten'!C13=""),"",'1_Eingabe_Grunddaten'!C13) -> 
A17: Nachträge bisher | F17: Nr. | H17: 1 - | I17: 1 | J17: Fr. | L17: 1757.65 | O17: =IF(VLOOKUP(c_Zustaendig,r_Briefkopf,15,FALSE)>0,VLOOKUP(c_Zustaendig,r_Briefkopf,15,FALSE),"") -> Kantonsstrasse(n) | U17: =IF(VLOOKUP(c_Zustaendig,r_Briefkopf,16,FALSE)>0,VLOOKUP(c_Zustaendig,r_Briefkopf,16,FALSE),"") -> Nr. | V17: =IF(OR(O17="",'1_Eingabe_Grunddaten'!C14=""),"",'1_Eingabe_Grunddaten'!C14) -> 
A18: Nachtrag neu | F18: Nr. | H18: 2 | J18: Fr. | L18: 3075.9 | O18: =IF(VLOOKUP(c_Zustaendig,r_Briefkopf,17,FALSE)>0,VLOOKUP(c_Zustaendig,r_Briefkopf,17,FALSE),"") -> Gemeinde(n) | U18: =IF(VLOOKUP(c_Zustaendig,r_Briefkopf,18,FALSE)>0,VLOOKUP(c_Zustaendig,r_Briefkopf,18,FALSE),"") -> Nr. | V18: =IF(OR(O18="",'1_Eingabe_Grunddaten'!C15=""),"",'1_Eingabe_Grunddaten'!C15) -> 
A19: Total Vertragssumme | J19: Fr. | L19: =SUM(L16:L18) -> 4833.55 | O19: =IF(VLOOKUP(c_Zustaendig,r_Briefkopf,19,FALSE)>0,VLOOKUP(c_Zustaendig,r_Briefkopf,19,FALSE),"") ->  | U19: =IF(VLOOKUP(c_Zustaendig,r_Briefkopf,20,FALSE)>0,VLOOKUP(c_Zustaendig,r_Briefkopf,20,FALSE),"") ->  | V19: =IF(OR(O19="",'1_Eingabe_Grunddaten'!C16=""),"",'1_Eingabe_Grunddaten'!C16) -> 
O20: =IF(VLOOKUP(c_Zustaendig,r_Briefkopf,21,FALSE)>0,VLOOKUP(c_Zustaendig,r_Briefkopf,21,FALSE),"") -> RMS-Stationierung | U20: =IF(VLOOKUP(c_Zustaendig,r_Briefkopf,22,FALSE)>0,VLOOKUP(c_Zustaendig,r_Briefkopf,22,FALSE),"") -> km | V20: =IF(OR(O20="",'1_Eingabe_Grunddaten'!C17=""),"",'1_Eingabe_Grunddaten'!C17) ->  | W20: =IF(VLOOKUP(c_Zustaendig,r_Briefkopf,23,FALSE)>0,VLOOKUP(c_Zustaendig,r_Briefkopf,23,FALSE),"") -> - | X20: =IF(OR(O20="",'1_Eingabe_Grunddaten'!C18=""),"",'1_Eingabe_Grunddaten'!C18) -> 
O21: =IF(VLOOKUP(c_Zustaendig,r_Briefkopf,24,FALSE)>0,VLOOKUP(c_Zustaendig,r_Briefkopf,24,FALSE),"") ->  | U21: =IF(VLOOKUP(c_Zustaendig,r_Briefkopf,25,FALSE)>0,VLOOKUP(c_Zustaendig,r_Briefkopf,25,FALSE),"") ->  | V21: =IF(OR(O21="",'1_Eingabe_Grunddaten'!C19=""),"",'1_Eingabe_Grunddaten'!C19) -> 
A25: a) | C25: Ersatzposition | J25: Fr. | L25: 0
C26: abzüglich ersetzte Positionen | J26: Fr. | L26: 0 | V26: Fr. | X26: =SUM(L25:L26) -> 0
A28: b) | C28: Zusatzpositionen | J28: (nicht in Hauptofferte enthalten) | V28: Fr. | X28: 3075.9
A30: c) | C30: Ausmass | F30: =IF(X30>0,"X","") ->  | G30: Mehrausmass | J30: =IF(X30<0,"X","") ->  | K30: Minderausmass | V30: Fr. | X30: 0
A32: TOTAL | F32: =IF(X32>0,"X","") -> X | G32: Mehrkosten | J32: =IF(X32<0,"X","") ->  | K32: Minderkosten | V32: Fr. | X32: 3075.9
A34: Baukostenart od. Benutzerdef. Leistung | J34: Mwst | L34: Fr. | O34: Begründung
A35: 833 | D35: Kopien (Nebenkosten) | J35: 7.7 | L35: 60.3 | O35: Aufgrund der internen Stellungnahmen des ANJF zum Vorprojekt musste der projektierte Durchlass mit zwei Kleintierbermen ergänzt und somit der Durchmesser des DL vergrössert werden. Dies erforderte neue hydraulische Berechnungen sowie die Anpassung sämtlicher Pläne.
A36: 872 | D36: Bauingenieur (Kostentarif) | J36: 7.7 | L36: 3015.6
H48: Total | L48: =SUM(L35:L47) -> 3075.9
A52: Firma | D52: =IF('1_Eingabe_Grunddaten'!C40>0,'1_Eingabe_Grunddaten'!C40,"") -> 
D53: =IF('1_Eingabe_Grunddaten'!C41>0,'1_Eingabe_Grunddaten'!C41,IF('1_Eingabe_Grunddaten'!C42>0,'1_Eingabe_Grunddaten'!C42,"")) -> 
D54: =IF(AND('1_Eingabe_Grunddaten'!C42>0,'1_Eingabe_Grunddaten'!C41>0),'1_Eingabe_Grunddaten'!C42,IF('1_Eingabe_Grunddaten'!C43>0,'1_Eingabe_Grunddaten'!C43,"")) -> 
D55: =IF(AND('1_Eingabe_Grunddaten'!C43>0,'1_Eingabe_Grunddaten'!C41>0),'1_Eingabe_Grunddaten'!C43,"") -> 
A59: Örtliche | D59: =IF('1_Eingabe_Grunddaten'!C47>0,'1_Eingabe_Grunddaten'!C47,"") ->  | O59: Budgetverantwortung
A60: Bauleitung | D60: =IF('1_Eingabe_Grunddaten'!C48>0,'1_Eingabe_Grunddaten'!C48,IF('1_Eingabe_Grunddaten'!C49>0,'1_Eingabe_Grunddaten'!C49,"")) ->  | O60: (Gesamtkosten)
D61: =IF(AND('1_Eingabe_Grunddaten'!C49>0,'1_Eingabe_Grunddaten'!C48>0),'1_Eingabe_Grunddaten'!C49,IF('1_Eingabe_Grunddaten'!C50>0,'1_Eingabe_Grunddaten'!C50,"")) -> 
D62: =IF(AND('1_Eingabe_Grunddaten'!C50>0,'1_Eingabe_Grunddaten'!C48>0),'1_Eingabe_Grunddaten'!C50,"") -> 
A63: Datum | H63: Kontrolliert | O63: Datum | V63: Visiert
A66: Oberbau- | D66: =IF('1_Eingabe_Grunddaten'!C53>0,'1_Eingabe_Grunddaten'!C53,"") ->  | O66: Bauherrschaft
A67: leitung | D67: =IF('1_Eingabe_Grunddaten'!C54>0,'1_Eingabe_Grunddaten'!C54,"") -> 
A69: Datum | H69: Geprüft
A70: Datum | H70: Visiert | O70: Datum | V70: Genehmigt
A72: Baukostenart od. Benutzerdef. Leistung | J72: Mwst | L72: Fr. | O72: Baukostenart od. Benutzerdef. Leistung | V72: Mwst | X72: Fr.
A123: Total der Nachtragsofferte | W123: =SUM(L73:L121,X73:X121) -> 0
A124: Begründung
Z191: Überprüfung Länge Begründung

Sheet 8_Ausdruck_Abschlagszahlung (hidden)
A1: =IF(VLOOKUP(c_Zustaendig,r_Briefkopf,2,FALSE)>0,VLOOKUP(c_Zustaendig,r_Briefkopf,2,FALSE),"") -> Kanton St.Gallen
A2: =IF(VLOOKUP(c_Zustaendig,r_Briefkopf,3,FALSE)>0,VLOOKUP(c_Zustaendig,r_Briefkopf,3,FALSE),"") -> Bau- und Umweltdepartement
A4: =IF(VLOOKUP(c_Zustaendig,r_Briefkopf,4,FALSE)>0,VLOOKUP(c_Zustaendig,r_Briefkopf,4,FALSE),"") -> Tiefbauamt
A5: =IF(VLOOKUP(c_Zustaendig,r_Briefkopf,26,FALSE)>0,VLOOKUP(c_Zustaendig,r_Briefkopf,26,FALSE),"") -> Amtsleitung
A8: Abschlagszahlung Nr. | K8: 6 | V8: Bau | X8: 615300.501100
A9: Eigene Nummerierung | I9: NO2, DL Brunnacker | V9: RRB/AS Nr. | X9: 18.32040
A11: =IF(VLOOKUP(c_Zustaendig,r_Briefkopf,5,FALSE)="Gebietseinheit VI","",IF(VLOOKUP(c_Zustaendig,r_Briefkopf,7,FALSE)>0,VLOOKUP(c_Zustaendig,r_Briefkopf,7,FALSE),"")) -> Gemeinde / Objekt / Baulos | I11: =IF(VLOOKUP(c_Zustaendig,r_Briefkopf,5,FALSE)="GEVI","",IF('1_Eingabe_Grunddaten'!C11="","",'1_Eingabe_Grunddaten'!C11)) -> 
A12: Art der Arbeit oder Lieferung | I12: =IF('1_Eingabe_Grunddaten'!C12="","",'1_Eingabe_Grunddaten'!C12) -> 
A14: Angebot | F14: vom | I14: =IF('1_Eingabe_Grunddaten'!C22="","",'1_Eingabe_Grunddaten'!C22) ->  | P14: =IF(VLOOKUP(c_Zustaendig,r_Briefkopf,8,FALSE)>0,VLOOKUP(c_Zustaendig,r_Briefkopf,8,FALSE),"") -> KOA / Pos. | W14: =IF('1_Eingabe_Grunddaten'!C10="","",'1_Eingabe_Grunddaten'!C10) -> 
A15: Werk-/Ingenieurvertrag | F15: vom | I15: =IF('1_Eingabe_Grunddaten'!C23="","",'1_Eingabe_Grunddaten'!C23) ->  | P15: =IF(VLOOKUP(c_Zustaendig,r_Briefkopf,10,FALSE)>0,VLOOKUP(c_Zustaendig,r_Briefkopf,10,FALSE),"") -> Kanton St.Gallen | V15: =IF(VLOOKUP(c_Zustaendig,r_Briefkopf,11,FALSE)>0,VLOOKUP(c_Zustaendig,r_Briefkopf,11,FALSE),"") -> Nr. | W15: =IF(VLOOKUP(c_Zustaendig,r_Briefkopf,12,FALSE)>0,VLOOKUP(c_Zustaendig,r_Briefkopf,12,FALSE),"") -> 17
A16: RRB/AS | F16: vom | I16: =IF('1_Eingabe_Grunddaten'!C26="","",'1_Eingabe_Grunddaten'!C26) ->  | K16: Fr. | M16: ='1_Eingabe_Grunddaten'!C27 -> 0 | P16: =IF(VLOOKUP(c_Zustaendig,r_Briefkopf,13,FALSE)>0,VLOOKUP(c_Zustaendig,r_Briefkopf,13,FALSE),"") -> Schweiz. Hauptstrasse(n) | V16: =IF(VLOOKUP(c_Zustaendig,r_Briefkopf,14,FALSE)>0,VLOOKUP(c_Zustaendig,r_Briefkopf,14,FALSE),"") -> Nr. | W16: =IF(OR('1_Eingabe_Grunddaten'!C13="",'1_Eingabe_Grunddaten'!A13=""),"",'1_Eingabe_Grunddaten'!C13) -> 
A17: Nachträge Nr. | E17: 1 | F17: bis | I17: 2 | K17: Fr. | M17: 4833.55 | P17: =IF(VLOOKUP(c_Zustaendig,r_Briefkopf,15,FALSE)>0,VLOOKUP(c_Zustaendig,r_Briefkopf,15,FALSE),"") -> Kantonsstrasse(n) | V17: =IF(VLOOKUP(c_Zustaendig,r_Briefkopf,16,FALSE)>0,VLOOKUP(c_Zustaendig,r_Briefkopf,16,FALSE),"") -> Nr. | W17: =IF(OR('1_Eingabe_Grunddaten'!A14="",'1_Eingabe_Grunddaten'!C14=""),"",'1_Eingabe_Grunddaten'!C14) -> 
A18: Total Vertragssumme | K18: Fr. | M18: =SUM(M16:M17) -> 4833.55 | P18: =IF(VLOOKUP(c_Zustaendig,r_Briefkopf,17,FALSE)>0,VLOOKUP(c_Zustaendig,r_Briefkopf,17,FALSE),"") -> Gemeinde(n) | V18: =IF(VLOOKUP(c_Zustaendig,r_Briefkopf,18,FALSE)>0,VLOOKUP(c_Zustaendig,r_Briefkopf,18,FALSE),"") -> Nr. | W18: =IF(OR('1_Eingabe_Grunddaten'!A15="",'1_Eingabe_Grunddaten'!C15=""),"",'1_Eingabe_Grunddaten'!C15) -> 
P19: =IF(VLOOKUP(c_Zustaendig,r_Briefkopf,19,FALSE)>0,VLOOKUP(c_Zustaendig,r_Briefkopf,19,FALSE),"") ->  | V19: =IF(VLOOKUP(c_Zustaendig,r_Briefkopf,20,FALSE)>0,VLOOKUP(c_Zustaendig,r_Briefkopf,20,FALSE),"") ->  | W19: =IF(OR('1_Eingabe_Grunddaten'!A16="",'1_Eingabe_Grunddaten'!C16=""),"",'1_Eingabe_Grunddaten'!C16) -> 
A20: Zahlungsfrist | D20: =IF('1_Eingabe_Grunddaten'!$C$31<'1_Eingabe_Grunddaten'!$C$35,'1_Eingabe_Grunddaten'!$C$31,IF('1_Eingabe_Grunddaten'!$C$35>0,'1_Eingabe_Grunddaten'!$C$35,'1_Eingabe_Grunddaten'!C31)) -> 0 | E20: Tage | H20: Rabatt | J20: =IF('1_Eingabe_Grunddaten'!C32="","0.0",'1_Eingabe_Grunddaten'!C32) -> 0.0 | K20: % | P20: =IF(VLOOKUP(c_Zustaendig,r_Briefkopf,21,FALSE)>0,VLOOKUP(c_Zustaendig,r_Briefkopf,21,FALSE),"") -> RMS-Stationierung | V20: =IF(VLOOKUP(c_Zustaendig,r_Briefkopf,22,FALSE)>0,VLOOKUP(c_Zustaendig,r_Briefkopf,22,FALSE),"") -> km | W20: =IF(P20="","",IF(OR('1_Eingabe_Grunddaten'!$A$17="",'1_Eingabe_Grunddaten'!$C$17=""),"",'1_Eingabe_Grunddaten'!$C$17)) ->  | X20: =IF(P20="","",IF(VLOOKUP(c_Zustaendig,r_Briefkopf,23,FALSE)>0,VLOOKUP(c_Zustaendig,r_Briefkopf,23,FALSE),"")) -> - | Y20: =IF(P20="","",IF(OR('1_Eingabe_Grunddaten'!$A$17="",'1_Eingabe_Grunddaten'!$C$18=""),"",'1_Eingabe_Grunddaten'!$C$18)) -> 
H21: Skonto | J21: =IF('1_Eingabe_Grunddaten'!C34="","0.0",'1_Eingabe_Grunddaten'!C34) -> 0.0 | K21: % | P21: =IF(VLOOKUP(c_Zustaendig,r_Briefkopf,24,FALSE)>0,VLOOKUP(c_Zustaendig,r_Briefkopf,24,FALSE),"") ->  | V21: =IF(VLOOKUP(c_Zustaendig,r_Briefkopf,25,FALSE)>0,VLOOKUP(c_Zustaendig,r_Briefkopf,25,FALSE),"") ->  | W21: =IF(P21="","",IF(OR('1_Eingabe_Grunddaten'!A19="",'1_Eingabe_Grunddaten'!C19=""),"",'1_Eingabe_Grunddaten'!C19)) -> 
P23: Detail der vorliegenden Zahlung | Y23: Fr.
A24: Bau-/Lieferaufträge | H24: Dienstleistungsaufträge | P24: Abgerechnete Leistung | Y24: 29200
B25: Akkord | H25: X | I25: Kostentarif | P25: - | R25: Rabatt | V25: =IF(Y24>0,Y25/Y24*100,0) -> 0 | W25: % | Y25: 0
B26: Regie | I26: Zeittarif | P26: Subtotal 1 | Y26: 29200
B27: Teuerung | H27: X | I27: Nebenkosten | P27: - | R27: Garantierückbehalt | V27: =IF(Y26>0,Y27/Y26*100,0) -> 0 | W27: % | Y27: 0
I28: Teuerung | P28: + | R28: Auszahlung Garantierückbehalt | Y28: 0
P29: Subtotal 2 | Y29: 29200
A30: Baukostenart od. Benutzerdef. Leistung | K30: Mwst | M30: Fr. | P30: - | R30: Skonto | V30: =IF(Y29>0,Y30/Y29*100,0) -> 0 | W30: % | Y30: 0
A31: 833 | C31: Kopien (Nebenkosten) | K31: 7.7 | M31: 60.3 | P31: Subtotal 3 | Y31: 29200
A32: 872 | C32: Bauingenieur (Kostentarif) | K32: 7.7 | M32: 3015.6 | P32: + | R32: Zeittarif | Y32: 0
P33: + | R33: Nebenkosten | Y33: 584
P34: + | R34: Teuerung | Y34: 0
P35: Subtotal 4 | Y35: 29784
P36: + | R36: Mehrwertsteuer | V36: 7.7 | W36: % | Y36: 2293.35
P37: - | R37: Variable MwSt. | Y37: 0
P38: + | R38: Rundungsdifferenz | Y38: -0.05
P39: Subtotal 5 | Y39: 32077.3
P40: - | R40: AZ 1-5 (inkl. MwSt.) | Y40: -29001.4
P41: Total Anweisungsbetrag | Y41: 3075.9
P43: Übersicht Zahlungen (inkl. MwSt.) | Y43: Fr.
C44: Total | M44: =SUM(M31:M43) -> 3075.9 | P44: Bau-/Lieferaufträge: | U44: - | V44: Akkord | Y44: 0
P45: (AZ 1-5) | U45: - | V45: Regie | Y45: 0
A46: Firma | D46: =IF('1_Eingabe_Grunddaten'!$C$40>0,'1_Eingabe_Grunddaten'!$C$40,"") ->  | U46: - | V46: Teuerung | Y46: 0
D47: =IF('1_Eingabe_Grunddaten'!$C$41>0,'1_Eingabe_Grunddaten'!$C$41,IF('1_Eingabe_Grunddaten'!$C$42>0,'1_Eingabe_Grunddaten'!$C$42,"")) ->  | P47: Dienstleistungsaufträge: | U47: - | V47: Kostentarif | Y47: 28432.75
D48: =IF(AND('1_Eingabe_Grunddaten'!$C$42>0,'1_Eingabe_Grunddaten'!$C$41>0),'1_Eingabe_Grunddaten'!$C$42,IF('1_Eingabe_Grunddaten'!$C$43>0,'1_Eingabe_Grunddaten'!$C$43,"")) ->  | P48: (AZ 1-5) | U48: - | V48: Zeittarif | Y48: 0
D49: =IF(AND('1_Eingabe_Grunddaten'!$C$43>0,'1_Eingabe_Grunddaten'!$C$41>0),'1_Eingabe_Grunddaten'!$C$43,"") ->  | U49: - | V49: Nebenkosten | Y49: 568.65
A50: Rg. | C50: 2.18.103-NT2 | F50: Dat. | H50: 2020-06-02 | J50: MwSt.-Nr. | L50: =IF('1_Eingabe_Grunddaten'!$C$44>0,'1_Eingabe_Grunddaten'!$C$44,"") ->  | U50: - | V50: Teuerung | Y50: 0
A52: Zahlbar an | D52: =IF('1_Eingabe_Grunddaten'!$C$57="","",'1_Eingabe_Grunddaten'!$C$57) ->  | P52: + | R52: Garantierückbehalt inkl. MwSt. | W52: (AZ 1-6) | Y52: 0
D53: =IF('1_Eingabe_Grunddaten'!$C$58="","",'1_Eingabe_Grunddaten'!$C$58) ->  | P53: Subtotal | Y53: =SUM(Y44:Y52) -> 29001.4
A54: Postkonto-Nr. | D54: =IF('1_Eingabe_Grunddaten'!$C$59="","",'1_Eingabe_Grunddaten'!$C$59) ->  | P54: Anweisungsbetrag | T54: AZ 6 | Y54: =Y41 -> 3075.9
A55: IBAN | D55: =IF('1_Eingabe_Grunddaten'!$C$60="","",'1_Eingabe_Grunddaten'!$C$60) ->  | P55: Total | Y55: =SUM(Y53:Y54) -> 32077.3
A58: Örtliche | D58: =IF('1_Eingabe_Grunddaten'!$C$47>0,'1_Eingabe_Grunddaten'!$C$47,"") ->  | P58: Solidarbürge
A59: Bauleitung | D59: =IF('1_Eingabe_Grunddaten'!$C$48>0,'1_Eingabe_Grunddaten'!$C$48,IF('1_Eingabe_Grunddaten'!$C$49>0,'1_Eingabe_Grunddaten'!$C$49,"")) -> 
D60: =IF(AND('1_Eingabe_Grunddaten'!$C$49>0,'1_Eingabe_Grunddaten'!$C$48>0),'1_Eingabe_Grunddaten'!$C$49,IF('1_Eingabe_Grunddaten'!$C$50>0,'1_Eingabe_Grunddaten'!$C$50,"")) ->  | P60: Bürgschaft vom
D61: =IF(AND('1_Eingabe_Grunddaten'!$C$50>0,'1_Eingabe_Grunddaten'!$C$48>0),'1_Eingabe_Grunddaten'!$C$50,"") ->  | P61: Garantieschein-Nr.
P62: Gültig bis
A63: Datum | H63: Kontrolliert | P63: Betrag
A66: Ober- | D66: =IF('1_Eingabe_Grunddaten'!$C$53>0,'1_Eingabe_Grunddaten'!$C$53,"") ->  | P66: Budgetverantwortung
A67: bauleitung | D67: =IF('1_Eingabe_Grunddaten'!$C$54>0,'1_Eingabe_Grunddaten'!$C$54,"") ->  | P67: (Gesamtkostenstelle)
A68: Datum | H68: Geprüft
A69: Datum | H69: Visiert | P69: Datum | W69: Visiert
A72: Gebucht: | P72: Zahlungsfreigabe:
V73: =IF(V7="","",V7) ->  | Y73: =IF(X7="","",X7) -> 
A74: Schlusszahlung | V74: =IF(V8="","",V8) -> Bau | Y74: =IF(X8="","",X8) -> 615300.501100
A75: =IF(A9="","",A9) -> Eigene Nummerierung | J75: =IF(I9="","",I9) -> NO2, DL Brunnacker | V75: =IF(V9="","",V9) -> RRB/AS Nr. | Y75: =IF(X9="","",X9) -> 18.32040
A77: =IF(VLOOKUP(c_Zustaendig,r_Briefkopf,5,FALSE)="Gebietseinheit VI","",IF(VLOOKUP(c_Zustaendig,r_Briefkopf,7,FALSE)>0,VLOOKUP(c_Zustaendig,r_Briefkopf,7,FALSE),"")) -> Gemeinde / Objekt / Baulos | I77: =IF(VLOOKUP(c_Zustaendig,r_Briefkopf,5,FALSE)="GEVI","",IF('1_Eingabe_Grunddaten'!C11="","",'1_Eingabe_Grunddaten'!C11)) -> 
A78: Art der Arbeit oder Lieferung | I78: =IF('1_Eingabe_Grunddaten'!C12="","",'1_Eingabe_Grunddaten'!C12) -> 
A80: Angebot | F80: vom | I80: =IF('1_Eingabe_Grunddaten'!C22="","",'1_Eingabe_Grunddaten'!C22) ->  | P80: =IF(VLOOKUP(c_Zustaendig,r_Briefkopf,8,FALSE)>0,VLOOKUP(c_Zustaendig,r_Briefkopf,8,FALSE),"") -> KOA / Pos. | W80: =IF('1_Eingabe_Grunddaten'!$C$10="","",'1_Eingabe_Grunddaten'!$C$10) -> 
A81: Werk-/Ingenieurvertrag | F81: vom | I81: =IF('1_Eingabe_Grunddaten'!C23="","",'1_Eingabe_Grunddaten'!C23) ->  | P81: =IF(VLOOKUP(c_Zustaendig,r_Briefkopf,10,FALSE)>0,VLOOKUP(c_Zustaendig,r_Briefkopf,10,FALSE),"") -> Kanton St.Gallen | V81: =IF(VLOOKUP(c_Zustaendig,r_Briefkopf,11,FALSE)>0,VLOOKUP(c_Zustaendig,r_Briefkopf,11,FALSE),"") -> Nr. | W81: =IF(VLOOKUP(c_Zustaendig,r_Briefkopf,12,FALSE)>0,VLOOKUP(c_Zustaendig,r_Briefkopf,12,FALSE),"") -> 17
A82: RRB/AS | F82: vom | I82: =IF('1_Eingabe_Grunddaten'!C26="","",'1_Eingabe_Grunddaten'!C26) ->  | K82: Fr. | M82: ='1_Eingabe_Grunddaten'!C27 -> 0 | P82: =IF(VLOOKUP(c_Zustaendig,r_Briefkopf,13,FALSE)>0,VLOOKUP(c_Zustaendig,r_Briefkopf,13,FALSE),"") -> Schweiz. Hauptstrasse(n) | V82: =IF(VLOOKUP(c_Zustaendig,r_Briefkopf,14,FALSE)>0,VLOOKUP(c_Zustaendig,r_Briefkopf,14,FALSE),"") -> Nr. | W82: =IF(OR('1_Eingabe_Grunddaten'!$C$13="",'1_Eingabe_Grunddaten'!$A$13=""),"",'1_Eingabe_Grunddaten'!$C$13) -> 
A83: Nachträge Nr. | E83: =IF(E17="","",E17) -> 1 | F83: =IF(F17="","",F17) -> bis | I83: =IF(I17="","",I17) -> 2 | K83: Fr. | M83: =IF(M17="","",M17) -> 4833.55 | P83: =IF(VLOOKUP(c_Zustaendig,r_Briefkopf,15,FALSE)>0,VLOOKUP(c_Zustaendig,r_Briefkopf,15,FALSE),"") -> Kantonsstrasse(n) | V83: =IF(VLOOKUP(c_Zustaendig,r_Briefkopf,16,FALSE)>0,VLOOKUP(c_Zustaendig,r_Briefkopf,16,FALSE),"") -> Nr. | W83: =IF(OR('1_Eingabe_Grunddaten'!$A$14="",'1_Eingabe_Grunddaten'!$C$14=""),"",'1_Eingabe_Grunddaten'!$C$14) -> 
A84: Total Vertragssumme | K84: Fr. | M84: =SUM(M82:M83) -> 4833.55 | P84: =IF(VLOOKUP(c_Zustaendig,r_Briefkopf,17,FALSE)>0,VLOOKUP(c_Zustaendig,r_Briefkopf,17,FALSE),"") -> Gemeinde(n) | V84: =IF(VLOOKUP(c_Zustaendig,r_Briefkopf,18,FALSE)>0,VLOOKUP(c_Zustaendig,r_Briefkopf,18,FALSE),"") -> Nr. | W84: =IF(OR('1_Eingabe_Grunddaten'!$A$15="",'1_Eingabe_Grunddaten'!$C$15=""),"",'1_Eingabe_Grunddaten'!$C$15) -> 
P85: =IF(VLOOKUP(c_Zustaendig,r_Briefkopf,19,FALSE)>0,VLOOKUP(c_Zustaendig,r_Briefkopf,19,FALSE),"") ->  | V85: =IF(VLOOKUP(c_Zustaendig,r_Briefkopf,20,FALSE)>0,VLOOKUP(c_Zustaendig,r_Briefkopf,20,FALSE),"") ->  | W85: =IF(OR('1_Eingabe_Grunddaten'!$A$16="",'1_Eingabe_Grunddaten'!$C$16=""),"",'1_Eingabe_Grunddaten'!$C$16) -> 
A86: Zahlungsfrist | D86: =IF('1_Eingabe_Grunddaten'!$C$31<'1_Eingabe_Grunddaten'!$C$35,'1_Eingabe_Grunddaten'!$C$31,IF('1_Eingabe_Grunddaten'!$C$35>0,'1_Eingabe_Grunddaten'!$C$35,'1_Eingabe_Grunddaten'!$C$31)) -> 0 | E86: Tage | H86: Rabatt | J86: =IF('1_Eingabe_Grunddaten'!$C$32="","0.0",'1_Eingabe_Grunddaten'!$C$32) -> 0.0 | K86: % | P86: =IF(VLOOKUP(c_Zustaendig,r_Briefkopf,21,FALSE)>0,VLOOKUP(c_Zustaendig,r_Briefkopf,21,FALSE),"") -> RMS-Stationierung | V86: =IF(VLOOKUP(c_Zustaendig,r_Briefkopf,22,FALSE)>0,VLOOKUP(c_Zustaendig,r_Briefkopf,22,FALSE),"") -> km | W86: =IF(OR('1_Eingabe_Grunddaten'!$A$17="",'1_Eingabe_Grunddaten'!$C$17=""),"",'1_Eingabe_Grunddaten'!$C$17) ->  | X86: =IF(VLOOKUP(c_Zustaendig,r_Briefkopf,23,FALSE)>0,VLOOKUP(c_Zustaendig,r_Briefkopf,23,FALSE),"") -> - | Y86: =IF(OR('1_Eingabe_Grunddaten'!$A$17="",'1_Eingabe_Grunddaten'!$C$18=""),"",'1_Eingabe_Grunddaten'!$C$18) -> 
H87: Skonto | J87: =IF('1_Eingabe_Grunddaten'!$C$34="","0.0",'1_Eingabe_Grunddaten'!$C$34) -> 0.0 | K87: % | P87: =IF(VLOOKUP(c_Zustaendig,r_Briefkopf,24,FALSE)>0,VLOOKUP(c_Zustaendig,r_Briefkopf,24,FALSE),"") ->  | V87: =IF(VLOOKUP(c_Zustaendig,r_Briefkopf,25,FALSE)>0,VLOOKUP(c_Zustaendig,r_Briefkopf,25,FALSE),"") ->  | W87: =IF(P87="","",IF(OR('1_Eingabe_Grunddaten'!$A$19="",'1_Eingabe_Grunddaten'!$C$19=""),"",'1_Eingabe_Grunddaten'!$C$19)) -> 
A89: Baukostenart od. Benutzerdef. Leistung | K89: Mwst | M89: Fr. | P89: Detail der vorliegenden Zahlung | Y89: Fr.
P90: Abgerechnete Leistung | Y90: =Y24 -> 29200
P91: - | R91: Rabatt | V91: =IF($Y$24>0,$Y$25/$Y$24*100,0) -> 0 | W91: % | Y91: =Y25 -> 0
P92: Subtotal 1 | Y92: =Y26 -> 29200
P93: - | R93: Skonto | V93: =IF(Y92>0,Y93/Y92*100,0) -> 0 | W93: % | Y93: =Y30 -> 0
P94: Subtotal 2 | Y94: 29200
P95: + | R95: Zeittarif | Y95: 0
P96: + | R96: Nebenkosten | Y96: 584
P97: + | R97: Teuerung | Y97: 0
P98: Subtotal 3 | Y98: 29784
P99: + | R99: Mehrwertsteuer | V99: =IF($Y$35>0,$Y$36/$Y$35*100,0) -> 7.699939565 | W99: % | Y99: 2293.35
P100: - | R100: Variable MwSt. | Y100: 0
P101: + | R101: Rundungsdifferenz | Y101: -0.05
P102: Subtotal 4 | Y102: 32077.3
P103: - | R103: =IF(R40<>"",R40,"") -> AZ 1-5 (inkl. MwSt.) | Y103: -29001.4
C104: Total | M104: =SUM(M90:M103) -> 0 | P104: Total Anweisungsbetrag | Y104: 3075.9
A106: Firma | D106: =IF('1_Eingabe_Grunddaten'!$C$40>0,'1_Eingabe_Grunddaten'!$C$40,"") ->  | P106: Gesamtkosten (inkl. MwSt.) | Y106: Fr.
D107: =IF('1_Eingabe_Grunddaten'!$C$41>0,'1_Eingabe_Grunddaten'!$C$41,IF('1_Eingabe_Grunddaten'!$C$42>0,'1_Eingabe_Grunddaten'!$C$42,"")) ->  | P107: Bau-/Lieferaufträge: | U107: - | V107: Akkord | Y107: =Y44 -> 0
D108: =IF(AND('1_Eingabe_Grunddaten'!$C$42>0,'1_Eingabe_Grunddaten'!$C$41>0),'1_Eingabe_Grunddaten'!$C$42,IF('1_Eingabe_Grunddaten'!$C$43>0,'1_Eingabe_Grunddaten'!$C$43,"")) ->  | U108: - | V108: Regie | Y108: 0
D109: =IF(AND('1_Eingabe_Grunddaten'!$C$43>0,'1_Eingabe_Grunddaten'!$C$41>0),'1_Eingabe_Grunddaten'!$C$43,"") ->  | U109: - | V109: Teuerung | Y109: 0
A110: Rg. | C110: =IF(C50="","",C50) -> 2.18.103-NT2 | F110: Dat. | H110: =IF(H50="","",H50) -> 2020-06-02 | J110: MwSt.-Nr. | L110: =IF('1_Eingabe_Grunddaten'!$C$44>0,'1_Eingabe_Grunddaten'!$C$44,"") ->  | P110: Dienstleistungsaufträge: | U110: - | V110: Kostentarif | Y110: 28432.75
A111: Zahlbar an | D111: =IF('1_Eingabe_Grunddaten'!$C$57="","",'1_Eingabe_Grunddaten'!$C$57) ->  | U111: - | V111: Zeittarif | Y111: 0
D112: =IF('1_Eingabe_Grunddaten'!$C$58="","",'1_Eingabe_Grunddaten'!$C$58) ->  | U112: - | V112: Nebenkosten | Y112: 568.65
A113: Postkonto-Nr. | D113: =IF('1_Eingabe_Grunddaten'!$C$59="","",'1_Eingabe_Grunddaten'!$C$59) ->  | U113: - | V113: Teuerung | Y113: 0
A114: IBAN | D114: =IF('1_Eingabe_Grunddaten'!$C$60="","",'1_Eingabe_Grunddaten'!$C$60) ->  | P114: Total | Y114: =SUM(Y107:Y113) -> 29001.4
A115: Sicherheitsleistung gemäss Werkvertrag und SIA Norm 118, Art. 181; | P115: Solidarbürge
A116: Solidarbürgschaft nach OR Art. 496;
A117: Schlussrechnung anerkannt unter Verzicht auf jede Nachforderung und
A118: unter Vorbehalt der Prüfung durch die Kant. und Eidg. Kontrollorgane! | P118: Bürgschaft vom
P119: Garantieschein-Nr.
P120: Gültig bis
P121: Betrag
P122: Bürgschaft vom
P123: Garantieschein-Nr.
P124: Gültig bis
A125: (Datum, Stempel und Unterschrift der Firma) | P125: Betrag
A128: Örtliche | D128: =IF('1_Eingabe_Grunddaten'!$C$47>0,'1_Eingabe_Grunddaten'!$C$47,"") ->  | P128: Budgetverantwortung
A129: Bauleitung | D129: =IF('1_Eingabe_Grunddaten'!$C$48>0,'1_Eingabe_Grunddaten'!$C$48,IF('1_Eingabe_Grunddaten'!$C$49>0,'1_Eingabe_Grunddaten'!$C$49,"")) ->  | P129: (Gesamtkostenstelle)
D130: =IF(AND('1_Eingabe_Grunddaten'!$C$50>0,'1_Eingabe_Grunddaten'!$C$48>0),'1_Eingabe_Grunddaten'!$C$50,IF('1_Eingabe_Grunddaten'!$C$50>0,'1_Eingabe_Grunddaten'!$C$50,"")) -> 
A131: Datum | H131: Kontrolliert | P131: Datum | W131: Visiert
A134: Ober- | D134: =IF('1_Eingabe_Grunddaten'!$C$53>0,'1_Eingabe_Grunddaten'!$C$53,"") ->  | P134: Bauherrschaft
A135: bauleitung | D135: =IF('1_Eingabe_Grunddaten'!$C$54>0,'1_Eingabe_Grunddaten'!$C$54,"") -> 
A136: Datum | H136: Geprüft
A137: Datum | H137: Visiert | P137: Datum | W137: Visiert
A139: Gebucht. | P139: Zahlungsfreigabe:
A140: Baukostenart od. Benutzerdef. Leistung | K140: Mwst | M140: Fr. | P140: Baukostenart od. Benutzerdef. Leistung | W140: Mwst | Y140: Fr.
W191: Total der Abschlagszahlung | Y191: =SUM(M141:M189,Y141:Y189) -> 0
V192: =IF(V7="","",V7) ->  | Y192: =IF(X7="","",X7) -> 
A193: Beilage für variable Mehrwertsteuer | V193: =IF(V8="","",V8) -> Bau | Y193: =IF(X8="","",X8) -> 615300.501100
V194: =IF(V9="","",V9) -> RRB/AS Nr. | Y194: =IF(X9="","",X9) -> 18.32040
A196: =IF(VLOOKUP(c_Zustaendig,r_Briefkopf,5,FALSE)="Gebietseinheit VI","",IF(VLOOKUP(c_Zustaendig,r_Briefkopf,7,FALSE)>0,VLOOKUP(c_Zustaendig,r_Briefkopf,7,FALSE),"")) -> Gemeinde / Objekt / Baulos | I196: =IF(VLOOKUP(c_Zustaendig,r_Briefkopf,5,FALSE)="GEVI","",IF('1_Eingabe_Grunddaten'!C11="","",'1_Eingabe_Grunddaten'!C11)) -> 
A197: Art der Arbeit oder Lieferung | I197: =IF('1_Eingabe_Grunddaten'!$C$12="","",'1_Eingabe_Grunddaten'!$C$12) -> 
A199: Angebot | F199: vom | I199: =IF('1_Eingabe_Grunddaten'!$C$22="","",'1_Eingabe_Grunddaten'!$C$22) ->  | P199: =IF(VLOOKUP(c_Zustaendig,r_Briefkopf,8,FALSE)>0,VLOOKUP(c_Zustaendig,r_Briefkopf,8,FALSE),"") -> KOA / Pos. | W199: =IF('1_Eingabe_Grunddaten'!$C$10="","",'1_Eingabe_Grunddaten'!$C$10) -> 
A200: Werk-/Ingenieurvertrag | F200: vom | I200: =IF('1_Eingabe_Grunddaten'!$C$23="","",'1_Eingabe_Grunddaten'!$C$23) ->  | P200: =IF(VLOOKUP(c_Zustaendig,r_Briefkopf,10,FALSE)>0,VLOOKUP(c_Zustaendig,r_Briefkopf,10,FALSE),"") -> Kanton St.Gallen | V200: =IF(VLOOKUP(c_Zustaendig,r_Briefkopf,11,FALSE)>0,VLOOKUP(c_Zustaendig,r_Briefkopf,11,FALSE),"") -> Nr. | W200: =IF(VLOOKUP(c_Zustaendig,r_Briefkopf,12,FALSE)>0,VLOOKUP(c_Zustaendig,r_Briefkopf,12,FALSE),"") -> 17
A201: RRB/AS | F201: vom | I201: =IF('1_Eingabe_Grunddaten'!$C$26="","",'1_Eingabe_Grunddaten'!$C$26) ->  | K201: Fr. | M201: ='1_Eingabe_Grunddaten'!$C$27 -> 0 | P201: =IF(VLOOKUP(c_Zustaendig,r_Briefkopf,13,FALSE)>0,VLOOKUP(c_Zustaendig,r_Briefkopf,13,FALSE),"") -> Schweiz. Hauptstrasse(n) | V201: =IF(VLOOKUP(c_Zustaendig,r_Briefkopf,14,FALSE)>0,VLOOKUP(c_Zustaendig,r_Briefkopf,14,FALSE),"") -> Nr. | W201: =IF(OR('1_Eingabe_Grunddaten'!$C$13="",'1_Eingabe_Grunddaten'!$A$13=""),"",'1_Eingabe_Grunddaten'!$C$13) -> 
A202: Nachräge Nr. | E202: =IF($E$17="","",$E$17) -> 1 | F202: =IF($F$17="","",$F$17) -> bis | I202: =IF($I$17="","",$I$17) -> 2 | K202: Fr. | M202: =IF($M$17="","",$M$17) -> 4833.55 | P202: =IF(VLOOKUP(c_Zustaendig,r_Briefkopf,15,FALSE)>0,VLOOKUP(c_Zustaendig,r_Briefkopf,15,FALSE),"") -> Kantonsstrasse(n) | V202: =IF(VLOOKUP(c_Zustaendig,r_Briefkopf,16,FALSE)>0,VLOOKUP(c_Zustaendig,r_Briefkopf,16,FALSE),"") -> Nr. | W202: =IF(OR('1_Eingabe_Grunddaten'!$A$14="",'1_Eingabe_Grunddaten'!$C$14=""),"",'1_Eingabe_Grunddaten'!$C$14) -> 
A203: Total Vertragssumme | K203: Fr. | M203: =SUM(M201:M202) -> 4833.55 | P203: =IF(VLOOKUP(c_Zustaendig,r_Briefkopf,17,FALSE)>0,VLOOKUP(c_Zustaendig,r_Briefkopf,17,FALSE),"") -> Gemeinde(n) | V203: =IF(VLOOKUP(c_Zustaendig,r_Briefkopf,18,FALSE)>0,VLOOKUP(c_Zustaendig,r_Briefkopf,18,FALSE),"") -> Nr. | W203: =IF(OR('1_Eingabe_Grunddaten'!$A$15="",'1_Eingabe_Grunddaten'!$C$15=""),"",'1_Eingabe_Grunddaten'!$C$15) -> 
P204: =IF(VLOOKUP(c_Zustaendig,r_Briefkopf,19,FALSE)>0,VLOOKUP(c_Zustaendig,r_Briefkopf,19,FALSE),"") ->  | V204: =IF(VLOOKUP(c_Zustaendig,r_Briefkopf,20,FALSE)>0,VLOOKUP(c_Zustaendig,r_Briefkopf,20,FALSE),"") ->  | W204: =IF(OR('1_Eingabe_Grunddaten'!$A$16="",'1_Eingabe_Grunddaten'!$C$16=""),"",'1_Eingabe_Grunddaten'!$C$16) -> 
A205: Zahlungsfrist | D205: =IF('1_Eingabe_Grunddaten'!$C$31<'1_Eingabe_Grunddaten'!$C$35,'1_Eingabe_Grunddaten'!$C$31,IF('1_Eingabe_Grunddaten'!$C$35>0,'1_Eingabe_Grunddaten'!$C$35,'1_Eingabe_Grunddaten'!$C$31)) -> 0 | E205: Tage | H205: Rabatt | J205: =IF('1_Eingabe_Grunddaten'!$C$32="","0.0",'1_Eingabe_Grunddaten'!$C$32) -> 0.0 | K205: % | P205: =IF(VLOOKUP(c_Zustaendig,r_Briefkopf,21,FALSE)>0,VLOOKUP(c_Zustaendig,r_Briefkopf,21,FALSE),"") -> RMS-Stationierung | V205: =IF(VLOOKUP(c_Zustaendig,r_Briefkopf,22,FALSE)>0,VLOOKUP(c_Zustaendig,r_Briefkopf,22,FALSE),"") -> km | W205: =IF(OR('1_Eingabe_Grunddaten'!$A$17="",'1_Eingabe_Grunddaten'!$C$17=""),"",'1_Eingabe_Grunddaten'!$C$17) ->  | X205: =IF(VLOOKUP(c_Zustaendig,r_Briefkopf,23,FALSE)>0,VLOOKUP(c_Zustaendig,r_Briefkopf,23,FALSE),"") -> - | Y205: =IF(OR('1_Eingabe_Grunddaten'!$A$17="",'1_Eingabe_Grunddaten'!$C$18=""),"",'1_Eingabe_Grunddaten'!$C$18) -> 
H206: Skonto | J206: =IF('1_Eingabe_Grunddaten'!$C$34="","0.0",'1_Eingabe_Grunddaten'!$C$34) -> 0.0 | K206: % | P206: =IF(VLOOKUP(c_Zustaendig,r_Briefkopf,24,FALSE)>0,VLOOKUP(c_Zustaendig,r_Briefkopf,24,FALSE),"") ->  | V206: =IF(VLOOKUP(c_Zustaendig,r_Briefkopf,25,FALSE)>0,VLOOKUP(c_Zustaendig,r_Briefkopf,25,FALSE),"") ->  | W206: =IF(P206="","",IF(OR('1_Eingabe_Grunddaten'!$A$19="",'1_Eingabe_Grunddaten'!$C$19=""),"",'1_Eingabe_Grunddaten'!$C$19)) -> 
A208: Detail des vorliegenden MwSt-Wechsels | M208: Fr. | P208: Detail des vorliegenden MwSt-Wechsels | Y208: Fr.
A209: von 8 auf 7.7 %
A210: Abgerechnete Leistung bis AZ Nr. 9 | M210: 836918.15
A211: - | B211: Rabatt | H211: =IF(OR(c_DruckRechnungMwStLeistungWert1="",c_DruckRechnungMwStLeistungWert1=0),0,c_DruckRechnungMwStRabatt1/c_DruckRechnungMwStLeistungWert1*100) -> -19.00000018 | J211: % | M211: -159014.45 | P211: - | R211: Rabatt | V211: =IF(OR(c_DruckRechnungMwStLeistungWert3="",c_DruckRechnungMwStLeistungWert3=0),0,c_DruckRechnungMwStRabatt3/c_DruckRechnungMwStLeistungWert3*100) -> 0 | W211: %
A212: Subtotal 1 | M212: =IF(AND(c_DruckRechnungMwStLeistungWert1="",c_DruckRechnungMwStRabatt1=""),"",c_DruckRechnungMwStLeistungWert1+c_DruckRechnungMwStRabatt1) -> 677903.7 | P212: Subtotal 1 | Y212: =IF(AND(c_DruckRechnungMwStLeistungWert3="",c_DruckRechnungMwStRabatt3=""),"",c_DruckRechnungMwStLeistungWert3+c_DruckRechnungMwStRabatt3) -> 
A213: - | B213: Garantierückbehalt | H213: =IF(OR(M212="",M212=0),0,c_DruckRechnungMwStRueckbehalt1/M212*100) -> -7.375678876 | I213: =IF(M212<>"",c_DruckRechnungMwStRueckbehalt1/M212*100,0) -> -7.375678876 | J213: % | M213: -50000 | P213: - | R213: Garantierückbehalt | V213: =IF(OR(Y212="",Y212=0),0,c_DruckRechnungMwStRueckbehalt3/Y212*100) -> 0 | W213: %
A214: + | B214: Auszahlung Garantierückbehalt | M214: 0 | P214: + | R214: Auszahlung Garantierückbehalt
A215: Subtotal 2 | M215: =IF(AND(M212="",c_DruckRechnungMwStRueckbehalt1="",c_DruckRechnungMwStAuszahlung1=""),"",M212+c_DruckRechnungMwStRueckbehalt1+c_DruckRechnungMwStAuszahlung1) -> 627903.7 | P215: Subtotal 2 | Y215: =IF(AND(Y212="",c_DruckRechnungMwStRueckbehalt3="",c_DruckRechnungMwStAuszahlung3=""),"",Y212+c_DruckRechnungMwStRueckbehalt3+c_DruckRechnungMwStAuszahlung3) -> 
A216: - | B216: Skonto | I216: =IF(OR(M215="",M215=0),0,c_DruckRechnungMwStSkonto1/M215*100) -> 0 | J216: % | M216: 0 | P216: - | R216: Skonto | V216: =IF(OR(Y215="",Y215=0),0,c_DruckRechnungMwStSkonto3/Y215*100) -> 0 | W216: %
A217: Subtotal 3 | M217: =IF(AND(M215="",c_DruckRechnungMwStSkonto1=""),"",M215+c_DruckRechnungMwStSkonto1) -> 627903.7 | P217: Subtotal 3 | Y217: =IF(AND(Y215="",c_DruckRechnungMwStSkonto3=""),"",Y215+c_DruckRechnungMwStSkonto3) -> 
A218: + | B218: Zeittarif | M218: 0 | P218: + | R218: Zeittarif
A219: + | B219: Nebenkosten | M219: 0 | P219: + | R219: Nebenkosten
A220: + | B220: Teuerung | M220: 0 | P220: + | R220: Teuerung
A221: Subtotal 4 | M221: =IF(AND(M217="",c_DruckRechnungMwStNebenkosten1="",c_DruckRechnungMwStZusatzleistung1="",c_DruckRechnungMwStTeuerung1=""),"",SUM(M217:M220)) -> 627903.7 | P221: Subtotal 4 | Y221: =IF(AND(Y217="",c_DruckRechnungMwStNebenkosten3="",c_DruckRechnungMwStZusatzleistung3="",c_DruckRechnungMwStTeuerung3=""),"",SUM(Y217:Y220)) -> 
A222: > | B222: Mehrwertsteuerdifferenz | I222: -0.3 | J222: % | M222: -1883.75 | P222: > | R222: Mehrwertsteuerdifferenz | W222: %
A225: Detail des vorliegenden MwSt-Wechsels | M225: Fr. | P225: Detail des vorliegenden MwSt-Wechsels | Y225: Fr.
A226: von 7.7 auf 8 %
A227: Abgerechnete Leistung bis AZ Nr. 15 | M227: 1943089.75
A228: - | B228: Rabatt | I228: =IF(OR(c_DruckRechnungMwStLeistungWert2="",c_DruckRechnungMwStLeistungWert2=0),0,c_DruckRechnungMwStRabatt2/c_DruckRechnungMwStLeistungWert2*100) -> -18.99999987 | J228: % | M228: -369187.05 | P228: - | R228: Rabatt | V228: =IF(OR(c_DruckRechnungMwStLeistungWert4="",c_DruckRechnungMwStLeistungWert4=0),0,c_DruckRechnungMwStRabatt4/c_DruckRechnungMwStLeistungWert4*100) -> 0 | W228: %
A229: Subtotal 1 | M229: =IF(AND(c_DruckRechnungMwStLeistungWert2="",c_DruckRechnungMwStRabatt2=""),"",c_DruckRechnungMwStLeistungWert2+c_DruckRechnungMwStRabatt2) -> 1573902.7 | P229: Subtotal 1 | Y229: =IF(AND(c_DruckRechnungMwStLeistungWert4="",c_DruckRechnungMwStRabatt4=""),"",c_DruckRechnungMwStLeistungWert4+c_DruckRechnungMwStRabatt4) -> 
A230: - | B230: Garantierückbehalt | I230: =IF(OR(M229="",M229=0),0,c_DruckRechnungMwStRueckbehalt2/M229*100) -> -5.000000953 | J230: % | M230: -78695.15 | P230: - | R230: Garantierückbehalt | V230: =IF(OR(Y229="",Y229=0),0,c_DruckRechnungMwStRueckbehalt4/Y229*100) -> 0 | W230: %
A231: + | B231: Auszahlung Garantierückbehalt | M231: 0 | P231: + | R231: Auszahlung Garantierückbehalt
A232: Subtotal 2 | M232: =IF(AND(M229="",c_DruckRechnungMwStRueckbehalt2="",c_DruckRechnungMwStAuszahlung2=""),"",M229+c_DruckRechnungMwStRueckbehalt2+c_DruckRechnungMwStAuszahlung2) -> 1495207.55 | P232: Subtotal 2 | Y232: =IF(AND(Y229="",c_DruckRechnungMwStRueckbehalt4="",c_DruckRechnungMwStAuszahlung4=""),"",Y229+c_DruckRechnungMwStRueckbehalt4+c_DruckRechnungMwStAuszahlung4) -> 
A233: - | B233: Skonto | I233: =IF(OR(M232="",M232=0),0,c_DruckRechnungMwStSkonto2/M232*100) -> 0 | J233: % | M233: 0 | P233: - | R233: Skonto | V233: =IF(OR(Y232="",Y232=0),0,c_DruckRechnungMwStSkonto4/Y232*100) -> 0 | W233: %
A234: Subtotal 3 | M234: =IF(AND(M232="",c_DruckRechnungMwStSkonto2=""),"",M232+c_DruckRechnungMwStSkonto2) -> 1495207.55 | P234: Subtotal 3 | Y234: =IF(AND(Y232="",c_DruckRechnungMwStSkonto4=""),"",Y232+c_DruckRechnungMwStSkonto4) -> 
A235: + | B235: Zeittarif | M235: 0 | P235: + | R235: Zeittarif
A236: + | B236: Nebenkosten | M236: 0 | P236: + | R236: Nebenkosten
A237: + | B237: Teuerung | M237: 0 | P237: + | R237: Teuerung
A238: Subtotal 4 | M238: =IF(AND(M234="",c_DruckRechnungMwStNebenkosten2="",c_DruckRechnungMwStZusatzleistung2="",c_DruckRechnungMwStTeuerung2=""),"",SUM(M234:M237)) -> 1495207.55 | P238: Subtotal 4 | Y238: =IF(AND(Y234="",c_DruckRechnungMwStNebenkosten4="",c_DruckRechnungMwStZusatzleistung4="",c_DruckRechnungMwStTeuerung4=""),"",SUM(Y234:Y237)) -> 
A239: > | B239: Mehrwertsteuerdifferenz | I239: 0.3 | J239: % | M239: 4485.6 | P239: > | R239: Mehrwertsteuerdifferenz | W239: %
A242: Total Mehrwertsteuerdifferenz (Übertrag in Variable MwSt. des Abschlagszahlungsformulars) | Y242: =IF(AND(c_DruckRechnungMwStDifferenz1="",c_DruckRechnungMwStDifferenz2="",c_DruckRechnungMwStDifferenz3="",c_DruckRechnungMwStDifferenz4=""),"",c_DruckRechnungMwStDifferenz1+c_DruckRechnungMwStDifferenz2+c_DruckRechnungMwStDifferenz3+c_DruckRechnungMwStDifferenz4) -> 2601.85
A244: Beilage Solidarbürgschaften
A246: Solidarbürge | D246: Name
D247: Adresse
A249: Bürgschaft vom | E249: Garantieschein-Nr. | S249: Gültig bis | W249: Betrag
S297: Total | W297: =SUM(W250:Y295) -> 0

Sheet 9_Ausdruck_Garantieschein (hidden)
A1: Kanton St.Gallen
A2: Bau- und Umweltdepartement
A4: =IF(VLOOKUP(c_Zustaendig,r_Briefkopf,4,FALSE)>0,VLOOKUP(c_Zustaendig,r_Briefkopf,4,FALSE),"") -> Tiefbauamt
A5: =IF(VLOOKUP(c_Zustaendig,r_Briefkopf,26,FALSE)>0,VLOOKUP(c_Zustaendig,r_Briefkopf,26,FALSE),"") -> Amtsleitung
A8: Angaben zum Garantieschein (Solidarbürgschaft)
A11: KOA / Pos. | J11: =IF('1_Eingabe_Grunddaten'!C10="","",'1_Eingabe_Grunddaten'!C10) -> 
A12: Gemeinde / Objekt / Baulos | J12: =IF('1_Eingabe_Grunddaten'!C10="","",'1_Eingabe_Grunddaten'!C11) -> 
A13: Art der Arbeit oder Lieferung | J13: =IF('1_Eingabe_Grunddaten'!C12="","",'1_Eingabe_Grunddaten'!C12) -> 
A14: Angebot | J14: vom | M14: =IF('1_Eingabe_Grunddaten'!C22="","",'1_Eingabe_Grunddaten'!C22) -> 
A15: Werk-/Ingenieurvertrag | J15: vom | M15: =IF('1_Eingabe_Grunddaten'!C23="","",'1_Eingabe_Grunddaten'!C23) -> 
A16: RRB/AS | J16: vom | M16: =IF('1_Eingabe_Grunddaten'!C26="","",'1_Eingabe_Grunddaten'!C26) ->  | Q16: =IF('1_Eingabe_Grunddaten'!C25="","","Nr. " & '1_Eingabe_Grunddaten'!C25) ->  | X16: =IF('1_Eingabe_Grunddaten'!C27="","",'1_Eingabe_Grunddaten'!C27) -> 
A18: Total Vertragssumme | X18: =SUM(X16:X17) -> 0
A20: Firma | J20: =IF('1_Eingabe_Grunddaten'!C40="","",'1_Eingabe_Grunddaten'!C40 & ", " & '1_Eingabe_Grunddaten'!C43) -> 
A22: Örtliche Bauleitung | J22: =IF('1_Eingabe_Grunddaten'!C47="","",'1_Eingabe_Grunddaten'!C47) -> 
A23: Oberbauleitung | J23: =IF('1_Eingabe_Grunddaten'!C53="","",'1_Eingabe_Grunddaten'!C53 & ", " & '1_Eingabe_Grunddaten'!C54) -> 
A26: Sicherheitsleistungen nach SIA 118 | J26: Ausgabe | N26: 2013
A28: Schlussrechnung - Solidarbürgschaft
K30: Garantieschein 5 Jahre | O30: Garantieschein 6 Jahre
A31: Schlussrechnung - Solidarbürgschaft
C32: NPK | D32: Leistungen | T32: NPK | U32: Leistungen | Y32: 18
C33: 112 | D33: Prüfungen | L33: Fr. | M33: 10000 | P33: Fr. | Q33: 3311.95 | T33: 112 | U33: Prüfungen
C34: 113 | D34: Baustelleneinrichtung | L34: Fr. | M34: 62608.45
C35: 117 | D35: Abbrüche und Demontagen | L35: Fr. | M35: 55733.95
C36: 121 | D36: Sichern, unterfangen, verstärken u | L36: Fr. | M36: 48141.4
P37: Fr. | Q37: 2523.65 | T37: 131 | U37: Instandsetzung u. Schutz v. Betonb
C38: 151 | D38: Bauarbeiten für Werkleitungen | L38: Fr. | M38: 5514.55
C39: 161 | D39: Wasserhaltung | L39: Fr. | M39: 2641.5
C40: 171 | D40: Pfähle | L40: Fr. | M40: 57586
P41: Fr. | Q41: 12724.95 | T41: 172 | U41: Abdicht. f. Bauten unter Terrain u
C42: 211 | D42: Baugruben u. Erdbau | L42: Fr. | M42: 16731.55
C43: 221 | D43: Fundationsschichten für Verkehrsan | L43: Fr. | M43: 11891.15
C44: 222 | D44: Pflästerungen und Abschlüsse | L44: Fr. | M44: 20894.95
P45: Fr. | Q45: 60532.85 | T45: 223 | U45: Belagsarbeiten
C46: 237 | D46: Kanalisationen und Entwässerungen | L46: Fr. | M46: 8986.85
C47: 241 | D47: Ortbetonbau | L47: Fr. | M47: 208598.3
C48: 246 | D48: Spannsysteme | L48: Fr. | M48: 25977.15
C49: 247 | D49: Lehr-, Schutz- und Montagegerüste | L49: Fr. | M49: 21371.05
P50: Fr. | Q50: 30821.2 | T50: 281 | U50: Fahrzeugrückhaltesysteme u. Geländ
C52: Total | L52: Fr. | M52: =SUM(M32:M51) -> 556676.85 | P52: Fr. | Q52: =SUM(Q32:Q51) -> 109914.6
C53: Totalsumme | K53: =M52+Q52 -> 666591.45
A54: Haftungsbetrag nach SIA 118, Art. 181
C55: Prozentsatz / Pauschale | K55: =IF(N26="1977 / 1991",IF(c_GarantieTotalsumme<=200000,10/100,IF(AND(c_GarantieTotalsumme>200000,c_GarantieTotalsumme<=400000),20000/c_GarantieTotalsumme,IF(AND(c_GarantieTotalsumme>400000,c_GarantieTotalsumme<=20000000),5/100,IF(c_GarantieTotalsumme>20000000,1000000/c_GarantieTotalsumme)))),IF(N26="2013",IF(c_GarantieTotalsumme<=300000,10/100,IF(AND(c_GarantieTotalsumme>300000,c_GarantieTotalsumme<=600000),30000/c_GarantieTotalsumme,IF(AND(c_GarantieTotalsumme>600000,c_GarantieTotalsumme<=40000000),5/100,IF(c_GarantieTotalsumme>40000000,2000000/c_GarantieTotalsumme)))),IF(N26="",'1_Eingabe_Grunddaten'!C33/100))) -> 0.05
C58: Garantiescheinbeträge | L58: Fr. | M58: =ROUND(M52*K55*2,1)/2 -> 27833.85 | P58: Fr. | Q58: =ROUND(Q52*K55*2,1)/2 -> 5495.75
C61: Total Haftungsbetrag | K61: =M58+Q58 -> 33329.6 | L61: Fr. | M61: =ROUND(M55*K58*2,1)/2 -> 0 | P61: Fr. | Q61: =ROUND(Q55*K58*2,1)/2 -> 0
A63: Fristen
C64: Abnahmedatum | K64: 25.02.2020
C67: Ablauf Rügefrist | K67: 24.02.2023 (3 J.) | O67: 24.02.2025 (5 J.)
C69: Ablauf Verjährungsfrist / Bürgschaftsverpf. | K69: 24.02.2025 (5 J.) | O69: 24.02.2026 (6 J.)

Sheet 10_Stammdaten (hidden)
A1: 1 | B1: 2 | C1: 3 | D1: 4 | E1: 5 | F1: 6 | G1: 7 | H1: 8 | I1: 9 | J1: 10 | K1: 11 | L1: 12 | M1: 13 | N1: 14 | O1: 15 | P1: 16 | Q1: 17 | R1: 18 | S1: 19 | T1: 20 | U1: 21 | V1: 22 | W1: 23 | X1: 24 | Y1: 25 | Z1: 26
A2: Bereichname = r_Briefkopf | E2: Zellenname = c_Zustaendig | F2: GEVI
A3: Liste der Abteilungen | E3: 1 | F3: 15
A4: Index: c_Zustaendig | B4: Variable: KopfTextLinks1 | C4: Variable: KopfTextLinks2 | D4: Variable: KopfTextLinks4 | E4: Variable: KopfTestLinks5 | F4: c_Verrechnungsort | G4: c_GemeindeObjektBaulos | H4: c_KOAPOSBKAKONT | I4: c_BauUnterhalt | J4: c_Projektbezeichnung1 | K4: c_ProjektbezeichnungNr1 | L4: c_ProjektbezeichnungText1 | M4: c_Projektbezeichnung2 | N4: c_ProjektbezeichnungNr2 | O4: c_Projektbezeichnung3 | P4: c_ProjektbezeichnungNr3 | Q4: c_Projektbezeichnung4 | R4: c_ProjektbezeichnungNr4 | S4: c_Projektbezeichnung5 | T4: c_ProjektbezeichnungNr5 | U4: c_Projektbezeichnung6 | V4: c_ProjektbezeichnungNr6 | W4: c_TrennstrichProjbez6 | X4: c_Projektbezeichnung7 | Y4: c_ProjektbezeichnungNr7 | Z4: Variable: KopfTextLins5Druck
A5: 1 | B5: Kanton St.Gallen | C5: Bau- und Umweltdepartement | D5: Tiefbauamt | E5: Amtsleitung | F5: 615000 | G5: Gemeinde / Objekt / Baulos | H5: KOA / Pos. | J5: Kanton St.Gallen | K5: Nr. | L5: 17 | M5: Schweiz. Hauptstrasse(n) | N5: Nr. | O5: Kantonsstrasse(n) | P5: Nr. | Q5: Gemeinde(n) | R5: Nr. | U5: RMS-Stationierung | V5: km | W5: - | Z5: Amtsleitung
A6: 16 | B6: Kanton St.Gallen | C6: Bau- und Umweltdepartement | D6: Tiefbauamt | E6: Mobilität und Planung (Sektionen/Fachstellen) | F6: 615000 | G6: Gemeinde / Objekt / Baulos | H6: KOA / Pos. | J6: Kanton St.Gallen | K6: Nr. | L6: 17 | M6: Schweiz. Hauptstrasse(n) | N6: Nr. | O6: Kantonsstrasse(n) | P6: Nr. | Q6: Gemeinde(n) | R6: Nr. | U6: RMS-Stationierung | V6: km | W6: - | Z6: Mobilität und Planung
A7: 19 | B7: Kanton St.Gallen | C7: Bau- und Umweltdepartement | D7: Tiefbauamt | E7: Mobilität und Planung (Verkehrstechnik) | F7: 615300 | G7: Gemeinde / Objekt / Baulos | H7: KOA / Pos. | J7: Kanton St.Gallen | K7: Nr. | L7: 17 | M7: Schweiz. Hauptstrasse(n) | N7: Nr. | O7: Kantonsstrasse(n) | P7: Nr. | Q7: Gemeinde(n) | R7: Nr. | U7: RMS-Stationierung | V7: km | W7: - | Z7: Mobilität und Planung
A8: 2 | B8: Kanton St.Gallen | C8: Bau- und Umweltdepartement | D8: Tiefbauamt | E8: Strassen- und Kunstbauten (Bau) | F8: 615300.501100 | G8: Gemeinde / Objekt / Baulos | H8: Projektnummer | I8: Bau | J8: Kanton St.Gallen | K8: Nr. | L8: 17 | M8: Schweiz. Hauptstrasse(n) | N8: Nr. | O8: Kantonsstrasse(n) | P8: Nr. | Q8: Gemeinde(n) | R8: Nr. | S8: Bauabschnitt | T8: Nr. | U8: RMS-Stationierung | V8: km | W8: - | Z8: Strassen- und Kunstbauten
A9: 3 | B9: Kanton St.Gallen | C9: Bau- und Umweltdepartement | D9: Tiefbauamt | E9: Strassen- und Kunstbauten (Unterhalt) | F9: 615300 | G9: Gemeinde / Objekt / Baulos | H9: KOA / Pos. | I9: Unterhalt | J9: Kanton St.Gallen | K9: Nr. | L9: 17 | M9: Schweiz. Hauptstrasse(n) | N9: Nr. | O9: Kantonsstrasse(n) | P9: Nr. | Q9: Gemeinde(n) | R9: Nr. | U9: RMS-Stationierung | V9: km | W9: - | Z9: Strassen- und Kunstbauten
A10: 4 | B10: Kanton St.Gallen | C10: Bau- und Umweltdepartement | D10: Tiefbauamt | E10: Kantonales Strasseninspektorat | F10: 615300 | G10: Gemeinde / Objekt / Baulos | H10: KOA / Pos. | I10: Unterhalt | J10: Kanton St.Gallen | K10: Nr. | L10: 17 | M10: Schweiz. Hauptstrasse(n) | N10: Nr. | O10: Kantonsstrasse(n) | P10: Nr. | Q10: Gemeinde(n) | R10: Nr. | U10: RMS-Stationierung | V10: km | W10: - | Z10: Kantonales Strasseninspektorat
A11: 5 | B11: Kanton St.Gallen | C11: Bau- und Umweltdepartement | D11: Tiefbauamt | E11: Strassenkreisinspektorat St.Gallen | F11: 615300 | G11: Gemeinde / Objekt / Baulos | H11: KOA / Pos. | I11: Unterhalt | J11: Kanton St.Gallen | K11: Nr. | L11: 17 | M11: Schweiz. Hauptstrasse(n) | N11: Nr. | O11: Kantonsstrasse(n) | P11: Nr. | Q11: Gemeinde(n) | R11: Nr. | U11: RMS-Stationierung | V11: km | W11: - | Z11: Strassenkreisinspektorat St.Gallen
A12: 6 | B12: Kanton St.Gallen | C12: Bau- und Umweltdepartement | D12: Tiefbauamt | E12: Strassenkreisinspektorat Buchs | F12: 615300 | G12: Gemeinde / Objekt / Baulos | H12: KOA / Pos. | I12: Unterhalt | J12: Kanton St.Gallen | K12: Nr. | L12: 17 | M12: Schweiz. Hauptstrasse(n) | N12: Nr. | O12: Kantonsstrasse(n) | P12: Nr. | Q12: Gemeinde(n) | R12: Nr. | U12: RMS-Stationierung | V12: km | W12: - | Z12: Strassenkreisinspektorat Buchs
A13: 7 | B13: Kanton St.Gallen | C13: Bau- und Umweltdepartement | D13: Tiefbauamt | E13: Strassenkreisinspektorat Schmerikon | F13: 615300 | G13: Gemeinde / Objekt / Baulos | H13: KOA / Pos. | I13: Unterhalt | J13: Kanton St.Gallen | K13: Nr. | L13: 17 | M13: Schweiz. Hauptstrasse(n) | N13: Nr. | O13: Kantonsstrasse(n) | P13: Nr. | Q13: Gemeinde(n) | R13: Nr. | U13: RMS-Stationierung | V13: km | W13: - | Z13: Strassenkreisinspektorat Schmerikon
A14: 8 | B14: Kanton St.Gallen | C14: Bau- und Umweltdepartement | D14: Tiefbauamt | E14: Strassenkreisinspektorat Wattwil | F14: 615300 | G14: Gemeinde / Objekt / Baulos | H14: KOA / Pos. | I14: Unterhalt | J14: Kanton St.Gallen | K14: Nr. | L14: 17 | M14: Schweiz. Hauptstrasse(n) | N14: Nr. | O14: Kantonsstrasse(n) | P14: Nr. | Q14: Gemeinde(n) | R14: Nr. | U14: RMS-Stationierung | V14: km | W14: - | Z14: Strassenkreisinspektorat Wattwil
A15: 9 | B15: Kanton St.Gallen | C15: Bau- und Umweltdepartement | D15: Tiefbauamt | E15: Strassenkreisinspektorat Gossau | F15: 615300 | G15: Gemeinde / Objekt / Baulos | H15: KOA / Pos. | I15: Unterhalt | J15: Kanton St.Gallen | K15: Nr. | L15: 17 | M15: Schweiz. Hauptstrasse(n) | N15: Nr. | O15: Kantonsstrasse(n) | P15: Nr. | Q15: Gemeinde(n) | R15: Nr. | U15: RMS-Stationierung | V15: km | W15: - | Z15: Strassenkreisinspektorat Gossau
A16: 10 | B16: Kanton St.Gallen | C16: Bau- und Umweltdepartement | D16: Tiefbauamt | E16: Steinbruch Starkenbach | F16: 615900 | G16: Gemeinde / Objekt / Baulos | H16: KOA / Pos. | Z16: Steinbruch Starkenbach
A17: 11 | B17: Kanton St.Gallen | C17: Bau- und Umweltdepartement | D17: Amt für Wasser und Energie | E17: Wasserbau (Bau) | F17: 625200.314100 | G17: Gemeinde / Objekt / Baulos | H17: Projektnummer | I17: Bau | J17: Kanton St.Gallen | K17: Nr. | L17: 17 | M17: Einzugsgebiet | N17: Nr. | O17: Gewässer | Q17: Gemeinde(n) | R17: Nr. | S17: Kapitel / Subventionsabr. | T17: Nr. | U17: Kilometrierung | V17: km | W17: - | Z17: Wasserbau
A18: 12 | B18: Kanton St.Gallen | C18: Bau- und Umweltdepartement | D18: Amt für Wasser und Energie | E18: Wasserbau (Unterhalt) | F18: 625200.315100 | G18: Gemeinde / Objekt / Baulos | H18: KOA / Pos. | I18: Unterhalt | J18: Kanton St.Gallen | K18: Nr. | L18: 17 | M18: Einzugsgebiet | N18: Nr. | O18: Gewässer | Q18: Gemeinde(n) | R18: Nr. | S18: Kapitel / Subventionsabr. | T18: Nr. | U18: Kilometrierung | V18: km | W18: - | Z18: Wasserbau
A19: 13 | B19: Kanton St.Gallen | C19: Bau- und Umweltdepartement | D19: Amt für Wasser und Energie | E19: Wasserbau (Hafenanlagen) | F19: 625200.314920 | G19: Gemeinde / Objekt / Baulos | H19: Projektnummer | I19: Hafenanlagen | J19: Kanton St.Gallen | K19: Nr. | L19: 17 | M19: Einzugsgebiet | N19: Nr. | O19: Gewässer | Q19: Gemeinde(n) | R19: Nr. | S19: Kapitel / Subventionsabr. | T19: Nr. | U19: Kilometrierung | V19: km | W19: - | Z19: Wasserbau
A20: 14 | B20: Kanton St.Gallen | C20: Bau- und Umweltdepartement | D20: Amt für Wasser und Energie | E20: Wasserbau (Aufträge an Dritte) | F20: 625200.318800 | G20: Gemeinde / Objekt / Baulos | H20: Projektnummer | I20: Dritte | J20: Kanton St.Gallen | K20: Nr. | L20: 17 | M20: Einzugsgebiet | N20: Nr. | O20: Gewässer | Q20: Gemeinde(n) | R20: Nr. | S20: Kapitel / Subventionsabr. | T20: Nr. | U20: Kilometrierung | V20: km | W20: - | Z20: Wasserbau
A21: 17 | B21: Kanton St.Gallen | C21: Bau- und Umweltdepartement | D21: Amt für Wasser und Energie | E21: Naturgefahren (Aufträge an Dritte) | F21: 625300.318800 | G21: Gemeinde / Objekt / Baulos | H21: Projektnummer | I21: Dritte | J21: Kanton St.Gallen | K21: Nr. | L21: 17 | M21: Einzugsgebiet | N21: Nr. | O21: Gewässer | Q21: Gemeinde(n) | R21: Nr. | S21: Kapitel / Subventionsabr. | T21: Nr. | U21: Kilometrierung | V21: km | W21: - | Z21: Naturgefahren
A22: 18 | B22: Kanton St.Gallen | C22: Bau- und Umweltdepartement | D22: Amt für Wasser und Energie | E22: Rhein und Hydrometrie (Aufträge an Dritte) | F22: 625100.318800 | G22: Gemeinde / Objekt / Baulos | H22: Projektnummer | I22: Dritte | J22: Kanton St.Gallen | K22: Nr. | L22: 17 | M22: Einzugsgebiet | N22: Nr. | O22: Gewässer | Q22: Gemeinde(n) | R22: Nr. | S22: Kapitel / Subventionsabr. | T22: Nr. | U22: Kilometrierung | V22: km | W22: - | Z22: Rhein und Hydrometrie
A23: 15 | B23: Tiefbauamt Kanton St.Gallen | C23: Nationalstrassen Gebiet VI | D23: Hauptsitz | E23: GEVI | F23: 615401 | H23: Kontierung | I23: NS-Unterhalt | J23: Gebietseinheit | K23: Nr. | L23: VI | M23: Nationalstrassen | N23: Nr. | O23: Kantonsstrasse(n) | P23: Nr. | Q23: Unterhaltsabschnitt | R23: Nr. | S23: Rapport-Position | T23: Nr. | Z23: GEVI
B25: Zellenname = c_AlleOderNeue | C25: Zellenname = c_GarantierueckbehaltProzentODERsia | E25: Zellenname = c_FilenameVorlage | F25: Zellenname = c_FileVersion
B26: FALSE | C26: FALSCH | E26: I_Kostenkontrolle | F26: Version 8.00
A30: BKA | B30: Leistung | C30: Index | D30: Auftragszugehörigkeit | E30: Art der Leistung | G30: Garantiefrist | H30: Kurzform | M30: Leistungsjahr
A31: 21 | B31: Grundstückserwerb | C31: 1 | D31: 1 | E31: Unternehmerleistung | G31: 5 | H31: Grundstückserwerb
A32: 29 | B32: Gebäude | C32: 2 | D32: 1 | E32: Unternehmerleistung | G32: 5 | H32: Gebäude | M32: 2016
A33: 39 | B33: Nebenkosten | C33: 3 | D33: 1 | E33: Unternehmerleistung | G33: 5 | H33: Nebenkosten | M33: 2017
A34: 49 | B34: Entschädigungen | C34: 4 | D34: 1 | E34: Unternehmerleistung | G34: 5 | H34: Entschädigungen | M34: 2018
A35: 111 | B35: Regiearbeiten | C35: 5 | D35: 2 | E35: Unternehmerleistung | G35: 5 | H35: Regiearbeiten | M35: 2019
A36: 112 | B36: Prüfungen | C36: 6 | D36: 1 | E36: Unternehmerleistung | G36: 5 | H36: Prüfungen | M36: 2020
A37: 113 | B37: Baustelleneinrichtung | C37: 7 | D37: 1 | E37: Unternehmerleistung | G37: 5 | H37: Baustelleneinrichtung | M37: 2021
A38: 114 | B38: Gerüste | C38: 8 | D38: 1 | E38: Unternehmerleistung | G38: 5 | H38: Gerüste | M38: 2022
A39: 116 | B39: Holzen und Roden | C39: 9 | D39: 1 | E39: Unternehmerleistung | G39: 5 | H39: Holzen und Roden | M39: 2023
A40: 117 | B40: Abbrüche und Demontagen | C40: 10 | D40: 1 | E40: Unternehmerleistung | G40: 5 | H40: Abbrüche u. Demontagen | M40: 2024
A41: 121 | B41: Sichern, unterfangen, verstärken u. verschieben | C41: 11 | D41: 1 | E41: Unternehmerleistung | G41: 5 | H41: Sichern, unterfangen, verstärken… | M41: 2025
A42: 124 | B42: Hilfsbrücken | C42: 12 | D42: 1 | E42: Unternehmerleistung | G42: 5 | H42: Hilfsbrücken | M42: 2026
A43: 125 | B43: Temporäre Verkehrsführung | C43: 13 | D43: 1 | E43: Unternehmerleistung | G43: 5 | H43: Temporäre Verkehrsführung | M43: 2027
A44: 131 | B44: Instandsetzung u. Schutz v. Betonbauten | C44: 14 | D44: 1 | E44: Unternehmerleistung | G44: 6 | H44: Instandsetzung u. Schutz v. Betonb. | M44: 2028
A45: 132 | B45: Bohren u. Trennen von Beton u. Mauerwerk | C45: 15 | D45: 1 | E45: Unternehmerleistung | G45: 5 | H45: Bohren u. Trennen | M45: 2029
A46: 151 | B46: Bauarbeiten für Werkleitungen | C46: 16 | D46: 1 | E46: Unternehmerleistung | G46: 5 | H46: Bauarbeiten für Werkleitungen | M46: 2030
A47: 152 | B47: Rohrvortrieb | C47: 17 | D47: 1 | E47: Unternehmerleistung | G47: 5 | H47: Rohrvortrieb | M47: 2031
A48: 161 | B48: Wasserhaltung | C48: 18 | D48: 1 | E48: Unternehmerleistung | G48: 5 | H48: Wasserhaltung | M48: 2032
A49: 162 | B49: Baugrubenabschlüsse u. Aussteifungen | C49: 19 | D49: 1 | E49: Unternehmerleistung | G49: 5 | H49: Baugrubenabschl. U. Aussteifungen
A50: 164 | B50: Verankerungen u. Nagelwände | C50: 20 | D50: 1 | E50: Unternehmerleistung | G50: 5 | H50: Verankerungen u. Nagelwände
A51: 171 | B51: Pfähle | C51: 21 | D51: 1 | E51: Unternehmerleistung | G51: 5 | H51: Pfähle
A52: 172 | B52: Abdicht. f. Bauten unter Terrain u. f. Brücken | C52: 22 | D52: 1 | E52: Unternehmerleistung | G52: 6 | H52: Abdichtungen
A53: 173 | B53: Baugrundverbesserungen | C53: 23 | D53: 1 | E53: Unternehmerleistung | G53: 5 | H53: Baugrundverbesserungen
A54: 181 | B54: Garten- und Landschaftsbau | C54: 24 | D54: 1 | E54: Unternehmerleistung | G54: 5 | H54: Garten- und Landschaftsbau
A55: 183 | B55: Zäune und Arealeingänge | C55: 25 | D55: 1 | E55: Unternehmerleistung | G55: 5 | H55: Zäune und Arealeingänge
A56: 184 | B56: Pflege v. Grün- u. Freiflächen | C56: 26 | D56: 1 | E56: Unternehmerleistung | G56: 5 | H56: Pflege v. Grün- u. Freiflächen
A57: 188 | B57: Lärmschutzwände | C57: 27 | D57: 1 | E57: Unternehmerleistung | G57: 5 | H57: Lärmschutzwände
A58: 189 | B58: Hochbauten: Stützpunkte u. Werkhöfe | C58: 28 | D58: 1 | E58: Unternehmerleistung | G58: 5 | H58: Hochbauten: Stützpunkte+Werkhöfe
A59: 211 | B59: Baugruben u. Erdbau | C59: 29 | D59: 1 | E59: Unternehmerleistung | G59: 5 | H59: Baugruben u. Erdbau
A60: 213 | B60: Wasserbau | C60: 30 | D60: 1 | E60: Unternehmerleistung | G60: 5 | H60: Wasserbau
A61: 214 | B61: Lawinen- u. Steinschlagverbau | C61: 31 | D61: 1 | E61: Unternehmerleistung | G61: 5 | H61: Lawinen- u. Steinschlagverbau
A62: 216 | B62: Altlasten, belastete Standorte und Entsorgung | C62: 32 | D62: 1 | E62: Unternehmerleistung | G62: 5 | H62: Altlasten und Entsorgung
A63: 221 | B63: Fundationsschichten für Verkehrsanlagen | C63: 33 | D63: 1 | E63: Unternehmerleistung | G63: 5 | H63: Fundationsschichten für Verkehrsa.
A64: 222 | B64: Pflästerungen und Abschlüsse | C64: 34 | D64: 1 | E64: Unternehmerleistung | G64: 5 | H64: Pflästerungen und Abschlüsse
A65: 223 | B65: Belagsarbeiten | C65: 35 | D65: 1 | E65: Unternehmerleistung | G65: 6 | H65: Belagsarbeiten
A66: 226 | B66: Materialaufbereitung | C66: 36 | D66: 1 | E66: Unternehmerleistung | G66: 5 | H66: Materialaufbereitung
A67: 237 | B67: Kanalisationen und Entwässerungen | C67: 37 | D67: 1 | E67: Unternehmerleistung | G67: 5 | H67: Kanalisation und Entwässerung
A68: 241 | B68: Ortbetonbau | C68: 38 | D68: 1 | E68: Unternehmerleistung | G68: 5 | H68: Ortbetonbau
A69: 244 | B69: Lager u. Fahrbahnübergänge f. Brücken | C69: 39 | D69: 1 | E69: Unternehmerleistung | G69: 6 | H69: Lager u. Fahrbahnübergänge
A70: 246 | B70: Spannsysteme | C70: 40 | D70: 1 | E70: Unternehmerleistung | G70: 5 | H70: Spannsysteme
A71: 247 | B71: Lehr-, Schutz- und Montagegerüste | C71: 41 | D71: 1 | E71: Unternehmerleistung | G71: 5 | H71: Lehr-, Schutz- und Montagegerüste
A72: 261 | B72: Sprengvortrieb im Fels SPV | C72: 42 | D72: 1 | E72: Unternehmerleistung | G72: 5 | H72: Sprengvortrieb im Fels SPV
A73: 262 | B73: Tunnelbohrmaschinen-Vortrieb im Fels TBM | C73: 43 | D73: 1 | E73: Unternehmerleistung | G73: 5 | H73: Tunnelbohrmaschinen-Vortr. im Fels
A74: 263 | B74: Maschinenunterstützter Vortrieb im Fels MUF | C74: 44 | D74: 1 | E74: Unternehmerleistung | G74: 5 | H74: Maschinenunterstützter Vort. im Fels
A75: 264 | B75: Masch.unterstü. Vortrieb im Lockergestein MUL | C75: 45 | D75: 1 | E75: Unternehmerleistung | G75: 5 | H75: Masch.unterst. Vortr. im Lockergest.
A76: 265 | B76: Schildmaschinen-Vortrieb im Lockergestein SM | C76: 46 | D76: 1 | E76: Unternehmerleistung | G76: 5 | H76: Schildmasch.-Vortr. im Lockergest.
A77: 266 | B77: Ausbruchsicherungen im Untertagbau | C77: 47 | D77: 1 | E77: Unternehmerleistung | G77: 5 | H77: Ausbruchssicherungen im Untertagb.
A78: 267 | B78: Bauhilfsmassnahmen im Untertagbau | C78: 48 | D78: 1 | E78: Unternehmerleistung | G78: 5 | H78: Bauhilfsmassnahmen im Untertagb.
A79: 268 | B79: Wasserhaltung im Untertagbau | C79: 49 | D79: 1 | E79: Unternehmerleistung | G79: 5 | H79: Wasserhaltung im Untertagbau
A80: 271 | B80: Abdichtungen im Untertagbau | C80: 50 | D80: 1 | E80: Unternehmerleistung | G80: 5 | H80: Abdichtungen im Untertagbau
A81: 272 | B81: Entwässerungen im Untertagbau | C81: 51 | D81: 1 | E81: Unternehmerleistung | G81: 5 | H81: Entwässerungen im Untertagbau
A82: 273 | B82: Verkleidungen im Untertagbau | C82: 52 | D82: 1 | E82: Unternehmerleistung | G82: 5 | H82: Verkleidungen im Untertagbau
A83: 274 | B83: Innenausbau im Untertagbau | C83: 53 | D83: 1 | E83: Unternehmerleistung | G83: 5 | H83: Innenausbau im Untertagbau
A84: 275 | B84: Kabelrohranlagen im Untertagbau | C84: 54 | D84: 1 | E84: Unternehmerleistung | G84: 5 | H84: Kabelrohranlagen im Untertagbau
A85: 276 | B85: Vorauserkund. und Überwach. im Untertagbau | C85: 55 | D85: 1 | E85: Unternehmerleistung | G85: 5 | H85: Vorauserkundungen u. Überwach.
A86: 281 | B86: Fahrzeugrückhaltesysteme u. Geländer | C86: 56 | D86: 1 | E86: Unternehmerleistung | G86: 6 | H86: Rückhaltesysteme u. Geländer
A87: 282 | B87: Signalisierung: Strassensignale | C87: 57 | D87: 1 | E87: Unternehmerleistung | G87: 5 | H87: Signalisierung: Strassensignale
A88: 283 | B88: Signalisierung: Grossflächentafeln | C88: 58 | D88: 1 | E88: Unternehmerleistung | G88: 5 | H88: Signalisierung: Grossflächentafeln
A89: 284 | B89: Signalisierung: Verkehrsbeeinflussungsanlagen | C89: 59 | D89: 1 | E89: Unternehmerleistung | G89: 5 | H89: Verkehrsbeeinflussungsanlagen
A90: 286 | B90: Markierung auf Verkehrsflächen | C90: 60 | D90: 1 | E90: Unternehmerleistung | G90: 5 | H90: Markierung auf Verkehrsflächen
A91: 314 | B91: Maurerarbeiten | C91: 61 | D91: 1 | E91: Unternehmerleistung | G91: 5 | H91: Maurerarbeiten
A92: 321 | B92: Montagebau in Stahl | C92: 62 | D92: 1 | E92: Unternehmerleistung | G92: 6 | H92: Montagebau in Stahl
A93: 331 | B93: Tragkonstruktion | C93: 63 | D93: 1 | E93: Unternehmerleistung | G93: 5 | H93: Zimmerarbeiten: Tragkonstruktion
A94: 333 | B94: Bekleidungen und Ausbau | C94: 64 | D94: 1 | E94: Unternehmerleistung | G94: 5 | H94: Holzbau: Bekleidungen und Ausbau
A95: 411 | B95: Werkleitungen für Wasser und Gas | C95: 65 | D95: 1 | E95: Unternehmerleistung | G95: 5 | H95: Werkleitungen für Wasser und Gas
A96: 591 | B96: Energieversorgung | C96: 66 | D96: 1 | E96: Unternehmerleistung | G96: 5 | H96: Energieversorgung
A97: 592 | B97: Beleuchtung | C97: 67 | D97: 1 | E97: Unternehmerleistung | G97: 5 | H97: Beleuchtung
A98: 593 | B98: Lüftung | C98: 68 | D98: 1 | E98: Unternehmerleistung | G98: 5 | H98: Lüftung
A99: 594 | B99: Signalisationsmittel | C99: 69 | D99: 1 | E99: Unternehmerleistung | G99: 5 | H99: Signalisationsmittel
A100: 595 | B100: Mess- u. Überwachungsanlagen | C100: 70 | D100: 1 | E100: Unternehmerleistung | G100: 5 | H100: Mess- u. Überwachungsanlagen
A101: 596 | B101: Zentraleinrichtungen | C101: 71 | D101: 1 | E101: Unternehmerleistung | G101: 5 | H101: Zentraleinrichtungen
A102: 597 | B102: Kabelanlagen | C102: 72 | D102: 1 | E102: Unternehmerleistung | G102: 5 | H102: Kabelanlagen
A103: 598 | B103: Bauliche Massnahmen | C103: 73 | D103: 1 | E103: Unternehmerleistung | G103: 5 | H103: Bauliche Massnahmen
A104: 599 | B104: Nebeneinrichtungen | C104: 74 | D104: 1 | E104: Unternehmerleistung | G104: 5 | H104: Nebeneinrichtungen
A105: 831 | B105: Muster und Materialprüfungen | C105: 75 | D105: 1 | E105: Ingenieurleistung | G105: 5 | H105: Muster und Materialprüfungen
A106: 833 | B106: Vervielfältigungen und Plankopien (Nebenkosten) | C106: 76 | D106: 6 | E106: Ingenieurleistung | G106: 5 | H106: Kopien (Nebenkosten)
A107: 835 | B107: Versicherungen | C107: 77 | D107: 1 | E107: Ingenieurleistung | G107: 5 | H107: Versicherungen
A108: 851 | B108: Projektleitung u. Projektbegleitung d. Bauherr | C108: 78 | D108: 5 | E108: Ingenieurleistung | G108: 5 | H108: PL d. Bauherr
A109: 872 | B109: Honorare: Bauingenieur (Kostentarif) | C109: 79 | D109: 4 | E109: Ingenieurleistung | F109: Kostentarif | G109: 5 | H109: Bauingenieur (Kostentarif)
A110: 872 | B110: Honorare: Bauingenieur (Zeittarif) | C110: 80 | D110: 5 | E110: Ingenieurleistung | F110: Zeittarif | G110: 5 | H110: Bauingenieur (Zeittarif)
A111: 873 | B111: Honorare: Elektroingenieur (Kostentarif) | C111: 81 | D111: 4 | E111: Ingenieurleistung | F111: Kostentarif | G111: 5 | H111: Elektroingenieur (Kostentarif)
A112: 873 | B112: Honorare: Elektroingenieur (Zeittarif) | C112: 82 | D112: 5 | E112: Ingenieurleistung | F112: Zeittarif | G112: 5 | H112: Elektroingenieur (Zeittarif)
A113: 876 | B113: Honorare: Spezialisten (Kostentarif) | C113: 83 | D113: 4 | E113: Ingenieurleistung | F113: Kostentarif | G113: 5 | H113: Spezialisten (Kostentarif)
A114: 876 | B114: Honorare: Spezialisten (Zeittarif) | C114: 84 | D114: 5 | E114: Ingenieurleistung | F114: Zeittarif | G114: 5 | H114: Spezialisten (Zeittarif)
A115: 882 | B115: Teuerung (Bauaufträge) | C115: 85 | D115: 3 | E115: Ingenieurleistung | G115: 5 | H115: Teuerung (Bauaufträge)
A116: 882 | B116: Teuerung (Dienstleistungsaufträge) | C116: 86 | D116: 7 | E116: Ingenieurleistung | G116: 5 | H116: Teuerung (Dienstleistungsauftrag)
A117: 900 | B117: …………………………….. (BKA // Akkord) | C117: 87 | D117: 1 | E117: Unternehmerleistung
A118: 901 | B118: …………………………….. (BKA // Akkord) | C118: 88 | D118: 1 | E118: Unternehmerleistung
A119: 902 | B119: …………………………….. (BKA // Akkord) | C119: 89 | D119: 1 | E119: Unternehmerleistung
A120: 903 | B120: …………………………….. (BKA // Akkord) | C120: 90 | D120: 1 | E120: Unternehmerleistung
A121: 904 | B121: …………………………….. (BKA // Akkord) | C121: 91 | D121: 1 | E121: Unternehmerleistung
A122: 905 | B122: …………………………….. (BKA // Akkord) | C122: 92 | D122: 1 | E122: Unternehmerleistung
A123: 906 | B123: …………………………….. (BKA // Akkord) | C123: 93 | D123: 1 | E123: Unternehmerleistung
A124: 907 | B124: …………………………….. (BKA // Akkord) | C124: 94 | D124: 1 | E124: Unternehmerleistung
A125: 908 | B125: …………………………….. (BKA // Akkord) | C125: 95 | D125: 1 | E125: Unternehmerleistung
A126: 909 | B126: …………………………….. (BKA // Akkord) | C126: 96 | D126: 1 | E126: Unternehmerleistung
A127: 910 | B127: …………………………….. (BKA // Akkord) | C127: 97 | D127: 1 | E127: Unternehmerleistung
A128: 911 | B128: …………………………….. (BKA // Akkord) | C128: 98 | D128: 1 | E128: Unternehmerleistung
A129: 912 | B129: …………………………….. (BKA // Akkord) | C129: 99 | D129: 1 | E129: Unternehmerleistung
A130: 913 | B130: …………………………….. (BKA // Akkord) | C130: 100 | D130: 1 | E130: Unternehmerleistung
A131: 914 | B131: …………………………….. (BKA // Akkord) | C131: 101 | D131: 1 | E131: Unternehmerleistung
A132: 915 | B132: …………………………….. (BKA // Akkord) | C132: 102 | D132: 1 | E132: Unternehmerleistung
A133: 916 | B133: …………………………….. (BKA // Akkord) | C133: 103 | D133: 1 | E133: Unternehmerleistung
A134: 917 | B134: …………………………….. (BKA // Akkord) | C134: 104 | D134: 1 | E134: Unternehmerleistung
A135: 918 | B135: …………………………….. (BKA // Akkord) | C135: 105 | D135: 1 | E135: Unternehmerleistung
A136: 919 | B136: …………………………….. (BKA // Akkord) | C136: 106 | D136: 1 | E136: Unternehmerleistung
A137: 920 | B137: …………………………….. (BKA // Regie) | C137: 107 | D137: 2 | E137: Unternehmerleistung
A138: 921 | B138: …………………………….. (BKA // Regie) | C138: 108 | D138: 2 | E138: Unternehmerleistung
A139: 922 | B139: …………………………….. (BKA // Regie) | C139: 109 | D139: 2 | E139: Unternehmerleistung
A140: 923 | B140: …………………………….. (BKA // Regie) | C140: 110 | D140: 2 | E140: Unternehmerleistung
A141: 924 | B141: …………………………….. (BKA // Regie) | C141: 111 | D141: 2 | E141: Unternehmerleistung
A142: 925 | B142: …………………………….. (BKA // Regie) | C142: 112 | D142: 2 | E142: Unternehmerleistung
A143: 926 | B143: …………………………….. (BKA // Regie) | C143: 113 | D143: 2 | E143: Unternehmerleistung
A144: 927 | B144: …………………………….. (BKA // Regie) | C144: 114 | D144: 2 | E144: Unternehmerleistung
A145: 928 | B145: …………………………….. (BKA // Regie) | C145: 115 | D145: 2 | E145: Unternehmerleistung
A146: 929 | B146: …………………………….. (BKA // Regie) | C146: 116 | D146: 2 | E146: Unternehmerleistung
A147: 930 | B147: …………………………….. (BKA // Regie) | C147: 117 | D147: 2 | E147: Unternehmerleistung
A148: 931 | B148: …………………………….. (BKA // Regie) | C148: 118 | D148: 2 | E148: Unternehmerleistung
A149: 932 | B149: …………………………….. (BKA // Regie) | C149: 119 | D149: 2 | E149: Unternehmerleistung
A150: 933 | B150: …………………………….. (BKA // Regie) | C150: 120 | D150: 2 | E150: Unternehmerleistung
A151: 934 | B151: …………………………….. (BKA // Regie) | C151: 121 | D151: 2 | E151: Unternehmerleistung
A152: 935 | B152: …………………………….. (BKA // Regie) | C152: 122 | D152: 2 | E152: Unternehmerleistung
A153: 936 | B153: …………………………….. (BKA // Regie) | C153: 123 | D153: 2 | E153: Unternehmerleistung
A154: 937 | B154: …………………………….. (BKA // Regie) | C154: 124 | D154: 2 | E154: Unternehmerleistung
A155: 938 | B155: …………………………….. (BKA // Regie) | C155: 125 | D155: 2 | E155: Unternehmerleistung
A156: 939 | B156: …………………………….. (BKA // Regie) | C156: 126 | D156: 2 | E156: Unternehmerleistung
A157: 940 | B157: …………………………….. (BKA // Kostentarif) | C157: 127 | D157: 4 | E157: Ingenieurleistung
A158: 941 | B158: …………………………….. (BKA // Kostentarif) | C158: 128 | D158: 4 | E158: Ingenieurleistung
A159: 942 | B159: …………………………….. (BKA // Kostentarif) | C159: 129 | D159: 4 | E159: Ingenieurleistung
A160: 943 | B160: …………………………….. (BKA // Kostentarif) | C160: 130 | D160: 4 | E160: Ingenieurleistung
A161: 944 | B161: …………………………….. (BKA // Kostentarif) | C161: 131 | D161: 4 | E161: Ingenieurleistung
A162: 945 | B162: …………………………….. (BKA // Kostentarif) | C162: 132 | D162: 4 | E162: Ingenieurleistung
A163: 946 | B163: …………………………….. (BKA // Kostentarif) | C163: 133 | D163: 4 | E163: Ingenieurleistung
A164: 947 | B164: …………………………….. (BKA // Kostentarif) | C164: 134 | D164: 4 | E164: Ingenieurleistung
A165: 948 | B165: …………………………….. (BKA // Kostentarif) | C165: 135 | D165: 4 | E165: Ingenieurleistung
A166: 949 | B166: …………………………….. (BKA // Kostentarif) | C166: 136 | D166: 4 | E166: Ingenieurleistung
A167: 950 | B167: …………………………….. (BKA // Kostentarif) | C167: 137 | D167: 4 | E167: Ingenieurleistung
A168: 951 | B168: …………………………….. (BKA // Kostentarif) | C168: 138 | D168: 4 | E168: Ingenieurleistung
A169: 952 | B169: …………………………….. (BKA // Kostentarif) | C169: 139 | D169: 4 | E169: Ingenieurleistung
A170: 953 | B170: …………………………….. (BKA // Kostentarif) | C170: 140 | D170: 4 | E170: Ingenieurleistung
A171: 954 | B171: …………………………….. (BKA // Kostentarif) | C171: 141 | D171: 4 | E171: Ingenieurleistung
A172: 955 | B172: …………………………….. (BKA // Kostentarif) | C172: 142 | D172: 4 | E172: Ingenieurleistung
A173: 956 | B173: …………………………….. (BKA // Kostentarif) | C173: 143 | D173: 4 | E173: Ingenieurleistung
A174: 957 | B174: …………………………….. (BKA // Kostentarif) | C174: 144 | D174: 4 | E174: Ingenieurleistung
A175: 958 | B175: …………………………….. (BKA // Kostentarif) | C175: 145 | D175: 4 | E175: Ingenieurleistung
A176: 959 | B176: …………………………….. (BKA // Kostentarif) | C176: 146 | D176: 4 | E176: Ingenieurleistung
A177: 960 | B177: …………………………….. (BKA // Zeittarif) | C177: 147 | D177: 5 | E177: Ingenieurleistung
A178: 961 | B178: …………………………….. (BKA // Zeittarif) | C178: 148 | D178: 5 | E178: Ingenieurleistung
A179: 962 | B179: …………………………….. (BKA // Zeittarif) | C179: 149 | D179: 5 | E179: Ingenieurleistung
A180: 963 | B180: …………………………….. (BKA // Zeittarif) | C180: 150 | D180: 5 | E180: Ingenieurleistung
A181: 964 | B181: …………………………….. (BKA // Zeittarif) | C181: 151 | D181: 5 | E181: Ingenieurleistung
A182: 965 | B182: …………………………….. (BKA // Zeittarif) | C182: 152 | D182: 5 | E182: Ingenieurleistung
A183: 966 | B183: …………………………….. (BKA // Zeittarif) | C183: 153 | D183: 5 | E183: Ingenieurleistung
A184: 967 | B184: …………………………….. (BKA // Zeittarif) | C184: 154 | D184: 5 | E184: Ingenieurleistung
A185: 968 | B185: …………………………….. (BKA // Zeittarif) | C185: 155 | D185: 5 | E185: Ingenieurleistung
A186: 969 | B186: …………………………….. (BKA // Zeittarif) | C186: 156 | D186: 5 | E186: Ingenieurleistung
A187: 970 | B187: …………………………….. (BKA // Zeittarif) | C187: 157 | D187: 5 | E187: Ingenieurleistung
A188: 971 | B188: …………………………….. (BKA // Zeittarif) | C188: 158 | D188: 5 | E188: Ingenieurleistung
A189: 972 | B189: …………………………….. (BKA // Zeittarif) | C189: 159 | D189: 5 | E189: Ingenieurleistung
A190: 973 | B190: …………………………….. (BKA // Zeittarif) | C190: 160 | D190: 5 | E190: Ingenieurleistung
A191: 974 | B191: …………………………….. (BKA // Zeittarif) | C191: 161 | D191: 5 | E191: Ingenieurleistung
A192: 975 | B192: …………………………….. (BKA // Zeittarif) | C192: 162 | D192: 5 | E192: Ingenieurleistung
A193: 976 | B193: …………………………….. (BKA // Zeittarif) | C193: 163 | D193: 5 | E193: Ingenieurleistung
A194: 977 | B194: …………………………….. (BKA // Zeittarif) | C194: 164 | D194: 5 | E194: Ingenieurleistung
A195: 978 | B195: …………………………….. (BKA // Zeittarif) | C195: 165 | D195: 5 | E195: Ingenieurleistung
A196: 979 | B196: …………………………….. (BKA // Zeittarif) | C196: 166 | D196: 5 | E196: Ingenieurleistung
A197: 980 | B197: …………………………….. (BKA // Nebenkosten) | C197: 167 | D197: 6 | E197: Ingenieurleistung
A198: 981 | B198: …………………………….. (BKA // Nebenkosten) | C198: 168 | D198: 6 | E198: Ingenieurleistung
A199: 982 | B199: …………………………….. (BKA // Nebenkosten) | C199: 169 | D199: 6 | E199: Ingenieurleistung
A200: 983 | B200: …………………………….. (BKA // Nebenkosten) | C200: 170 | D200: 6 | E200: Ingenieurleistung
A201: 984 | B201: …………………………….. (BKA // Nebenkosten) | C201: 171 | D201: 6 | E201: Ingenieurleistung
A202: 985 | B202: …………………………….. (BKA // Nebenkosten) | C202: 172 | D202: 6 | E202: Ingenieurleistung
A203: 986 | B203: …………………………….. (BKA // Nebenkosten) | C203: 173 | D203: 6 | E203: Ingenieurleistung
A204: 987 | B204: …………………………….. (BKA // Nebenkosten) | C204: 174 | D204: 6 | E204: Ingenieurleistung
... 12 more rows
